Cogmind - Beta 14 @@@ ROGUE MODE // 2024.11.16 @ 15:57:55 Player: 7604 Result: Destroyed 0b10! Performance ------------- Evolutions (9) 4500 Regions Visited (34) 6800 Robots Destroyed (251) 1255 Value Destroyed (7689) 7689 Prototype IDs (93) 1860 Alien Tech Used (13) 2600 Bonus (31168) 31168 TOTAL SCORE: 55872 Bonus ------- Triggered Max Security 2000 High Alert Combat Kills 1713 Follower Combat Kills 3223 Network Hubs Disabled 200 Met Data Miner 300 Met Imprinter 300 Met Warlord at Base 500 MAIN.C Attacked Warlord 500 Built Enhanced Grunts 300 A7 Reached Mainframe 300 Met R17 at Cetus 500 Used Core Reset Matrix 3000 Met R17 at Research 2000 Met Warlord at Research 2000 Met Sigix 2000 Integrated Exoskeleton 5000 Escaped with Sigix 5000 Win 3000 Friendly Fire -668 Cogmind --------- Core Integrity 1518/1600 Matter 211/300 Energy 428/450 System Corruption 0% Temperature Cool (4) Movement Walking (30) Location Tau Ceti IV Orbit Parts ------- > --- POWER (1) -------- Improved Quantum Reactor > --- PROPULSION (5) --- Sigix Exoskeleton > --- UTILITY (5) ------ Medium Storage Unit Experimental Targeting Computer Experimental Core Analyzer Improved Reaction Control System Advanced Force Field > --- WEAPON (2) ------- Sigix Sheargun Sigix Sheargun > --- INVENTORY (14) --- Mini Fusion Reactor Light Quantum Reactor Structural Scanner Stasis Canceller ECM Suite Transdimensional Reconstructor Terrabomb Sigix Sheargun Sigix Sheargun Linear Accelerator Fusion Bomb Launcher Sigix Containment Pod Peak State ------------ > --- POWER ------------ Improved Quantum Reactor > --- PROPULSION ------- Sigix Exoskeleton > --- UTILITY ---------- Medium Storage Unit Experimental Targeting Computer Experimental Core Analyzer Improved Reaction Control System Advanced Force Field > --- WEAPON ----------- Sigix Sheargun Sigix Sheargun > --- INVENTORY -------- Mini Fusion Reactor Light Quantum Reactor Structural Scanner Stasis Canceller ECM Suite Transdimensional Reconstructor Terrabomb Sigix Sheargun Sigix Sheargun Linear Accelerator Fusion Bomb Launcher Sigix Containment Pod [Rating: 235] Favorites ----------- Power Mini Fusion Reactor Engine Cooled Ion Engine Power Core Light Nuclear Core Reactor Mini Fusion Reactor Propulsion Light Treads Treads Light Treads Leg Flexi-carbon Leg Wheel Armored Huge Wheel Flight Unit Improved Flight Unit Utility Improved Hacking Suite Device Heat Sink Storage Medium Storage Unit Processor Improved Signal Interpreter Hackware Improved Hacking Suite Protection Improved Propulsion Shielding Artifact Core Physics Calibrator Weapon Beam Cannon Energy Gun Advanced Beam Rifle Energy Cannon Beam Cannon Ballistic Gun Improved Assault Rifle Ballistic Cannon Linear Accelerator Launcher Guided Missile Launcher Special Weapon Remote Datajack Slashing Weapon Makeshift Axe Piercing Weapon Enhanced Force Lance Special Melee Weapon Advanced Datajack Build | -11 -10 -10 -9 -8 -7 -7 -7 -7 -7 -7 -6 -6 -6 -6 -6 -5 -5 -5 -5 -5 -5 -5 -5 -4 -4 -4 -4 -3 -3 -3 -2 -2 -2 -1 ------- Run | Yrd Mat Min Mat Mat Fac Was Fac Low Low Dat Pro Fac Low Low Zio Pro Fac Was Fac Ext Cet Arc Hub Fac Upp Upp War Pro Res Tes Res Qua Sec Acc Slots Evolved 18 | . . . 2 2 2 . . . . . . 2 . . . . 2 . . . . . . 2 . . . . 2 . 2 . . 2 Power 1 | . . . . . . . . . . . . . . . . . . . . . . . . . . . . . . . 1 . . . Propulsion 4 | . . . . 1 2 . . . . . . . . . . . . . . . . . . . . . . . 1 . . . . . Utility 13 | . . . 2 1 . . . . . . . 2 . . . . 2 . . . . . . 2 . . . . 1 . 1 . . 2 Weapon . | . . . . . . . . . . . . . . . . . . . . . . . . . . . . . . . . . . . Parts Attached 462 | 7 9 3 45 31 21 2 21 2 5 . 6 18 4 . 8 14 29 4 8 22 6 17 11 44 . . 13 . 20 17 8 17 39 11 Power 25 | 1 2 1 2 2 1 . 3 . . . . . . . . . 1 1 . 1 . . . 3 . . . . . . 1 1 3 2 Engine 8 | 1 2 . 2 . 1 . 1 . . . . . . . . . . . . . . . . . . . . . . . . 1 . . Core 7 | . . 1 . 2 . . 2 . . . . . . . . . 1 . . . . . . 1 . . . . . . . . . . Reactor 10 | . . . . . . . . . . . . . . . . . . 1 . 1 . . . 2 . . . . . . 1 . 3 2 Propulsion 81 | 2 1 1 13 10 8 . 4 . . . . 1 . . . . . . 2 11 . 6 1 8 . . 3 . 5 . . 2 3 . Treads 25 | 2 1 1 12 9 . . . . . . . . . . . . . . . . . . . . . . . . . . . . . . Leg 11 | . . . . . . . . . . . . . . . . . . . . 11 . . . . . . . . . . . . . . Wheel 1 | . . . . 1 . . . . . . . . . . . . . . . . . . . . . . . . . . . . . . Hover . | . . . . . . . . . . . . . . . . . . . . . . . . . . . . . . . . . . . Flight 44 | . . . 1 . 8 . 4 . . . . 1 . . . . . . 2 . . 6 1 8 . . 3 . 5 . . 2 3 . Utility 233 | 2 3 1 16 12 8 2 10 2 5 . 6 11 2 . 1 4 10 2 4 7 3 8 8 25 . . 7 . 14 11 7 13 22 7 Device 142 | 1 1 1 9 6 3 1 9 2 5 . 6 5 1 . 1 2 4 1 . 3 . 3 6 17 . . 5 . 8 9 6 9 14 4 Storage 9 | 1 2 . . . 1 1 . . . . . . . . . . . . . 1 . 1 1 . . . . . . . . . 1 . Processor 24 | . . . . 1 . . 1 . . . . . . . . . 1 . 3 . . 1 . 5 . . 1 . 1 2 . 1 4 3 Hackware 11 | . . . . . 2 . . . . . . 2 . . . . 1 . . . . 3 . 1 . . . . 1 . . . 1 . Protection 46 | . . . 7 5 2 . . . . . . 4 1 . . 2 4 1 1 3 3 . 1 2 . . 1 . 4 . 1 3 1 . Artifact 1 | . . . . . . . . . . . . . . . . . . . . . . . . . . . . . . . . . 1 . Weapon 123 | 2 3 . 14 7 4 . 4 . . . . 6 2 . 7 10 18 1 2 3 3 3 2 8 . . 3 . 1 6 . 1 11 2 Energy Gun 18 | 2 1 . 7 5 . . . . . . . . . . . . . . . . . . . . . . 1 . . . . . 1 1 Energy Cannon 22 | . 2 . 2 1 . . . . . . . 2 1 . . 1 8 . . 2 2 . . . . . 1 . . . . . . . Ballistic Gun 5 | . . . 3 . . . . . . . . . . . . . . . . . 1 1 . . . . . . . . . . . . Ballistic Cannon 16 | . . . . . . . 1 . . . . . . . . . . . . . . . . 2 . . . . . 3 . 1 9 . Launcher 9 | . . . . 1 . . . . . . . . . . 1 3 1 1 . 1 . . . . . . . . . . . . . 1 Special Weapon 8 | . . . . . 1 . 1 . . . . 3 . . . . 1 . 1 . . . 1 . . . . . . . . . . . Impact Weapon . | . . . . . . . . . . . . . . . . . . . . . . . . . . . . . . . . . . . Slashing Weapon 22 | . . . 2 . 2 . 2 . . . . . . . 4 3 7 . 1 . . . . 1 . . . . . . . . . . Piercing Weapon 7 | . . . . . . . . . . . . . . . 1 . . . . . . . . 2 . . . . 1 3 . . . . Special Melee Weapon 16 | . . . . . 1 . . . . . . 1 1 . 1 3 1 . . . . 2 1 3 . . 1 . . . . . 1 . Unidentified Prototypes 24 | . . . 4 1 . 1 2 . . . . . . . 1 . . . 1 . 2 . . . . . 6 . . . . 2 4 . Corrupted Parts 2 | . . . 1 . . . . . . . . . . . . . . . . . . . . . . . . . . . . 1 . . System Corruption 13 | . . . 7 . . . . . . . . . . . . . . . . . . . . . . . . . . . . 6 . . Parts Lost 46 | . 3 1 9 8 2 . 2 . . . . . . . . . 3 1 1 . . . . . . . 1 . 1 1 3 6 4 . Power 8 | . 1 . 1 2 . . 1 . . . . . . . . . . . . . . . . . . . . . . . . 2 1 . Propulsion 7 | . 1 1 1 2 1 . 1 . . . . . . . . . . . . . . . . . . . . . . . . . . . Utility 23 | . . . 6 3 . . . . . . . . . . . . 1 1 1 . . . . . . . 1 . 1 1 2 4 2 . Weapon 8 | . 1 . 1 1 1 . . . . . . . . . . . 2 . . . . . . . . . . . . . 1 . 1 . Highest Loss Streak 4 | . 2 1 3 4 1 . 1 . . . . . . . . . 1 1 1 . . . . . . . 1 . 1 1 2 3 3 . To Critical Strikes 1 | . . . . 1 . . . . . . . . . . . . . . . . . . . . . . . . . . . . . . Average Slot Usage (%) 96 | . 100 96 97 94 95 100 99 100 100 100 100 99 100 100 99 98 99 95 93 92 99 99 100 97 100 100 100 100 98 98 95 86 89 61 Engine 3 | . 14 6 9 . 2 . 2 . . . . . . . . . . . . . . . . . . . . . . . . . . . Core 2 | . . 7 1 8 4 7 4 7 7 7 7 6 6 6 6 6 5 1 . . . . . . . . . . . . . . . . Reactor 1 | . . . . . . . . . . . . . . . . . . 3 5 4 5 5 5 4 5 5 5 5 4 4 7 5 7 7 Treads 11 | . 28 24 21 23 . . . . . . . . . . . . . . . . . . . . . . . . . . . . . . Leg 2 | . . . . . . . . . . . . . . . . . . . . 26 29 6 . . . . . . . . . . . 7 Flight 13 | . . . . . 35 38 37 38 38 38 38 33 33 33 33 33 29 29 29 1 . 22 29 26 26 26 26 26 28 28 26 26 23 . Device 13 | . 14 14 20 19 6 6 6 7 7 7 7 6 6 6 6 6 8 14 14 5 5 10 11 9 10 10 10 10 8 7 14 15 17 7 Storage 8 | . 14 14 11 9 7 7 7 7 7 7 7 6 6 6 6 6 5 5 5 5 5 5 5 5 5 5 5 5 4 4 4 4 4 7 Processor 4 | . . . . 1 7 7 7 7 7 7 7 6 6 6 6 6 5 1 1 4 . 3 5 12 15 15 15 15 14 14 13 14 11 15 Hackware 9 | . . . . . 14 15 15 15 15 15 15 20 20 20 20 20 23 23 23 23 23 23 23 21 21 21 20 15 18 19 16 7 7 . Protection 6 | . . . 10 11 . . . . . . . 5 5 6 6 5 7 5 4 6 16 6 5 4 5 5 5 10 9 9 6 4 6 . Energy Gun 4 | . 11 . 9 13 . . . . . . . . . . . . . 1 . . . . . . . . . . . . . . 1 15 Energy Cannon 4 | . 16 28 5 1 . . . . . . . . . . . . . . . 2 5 1 . . . . . . . . . . . . Ballistic Gun 1 | . . . 6 3 . . . . . . . . . . . . . . . . . . . . . . . . . . . . . . Slashing Weapon 1 | . . . . . 6 7 7 7 7 7 7 6 6 6 5 4 4 5 5 5 5 5 5 3 . . . . . . . . . . Special Melee Weapon 1 | . . . . . 3 . . . . . . 1 6 6 6 4 4 . . . . 3 4 4 5 5 5 5 4 4 1 . . . Peak Build Rating 235 | 9 10 14 22 41 45 49 48 48 47 47 47 56 58 56 57 58 65 71 72 81 90 91 84 104 103 103 112 112 139 145 156 153 221 235 Average Rating 59 | 5 9 12 19 31 38 45 43 46 46 47 46 52 55 56 55 56 62 64 64 75 85 83 82 92 103 103 105 112 128 140 150 136 155 228 On Entrance 72 | . 9 10 14 20 38 45 46 47 47 47 47 47 56 56 56 56 56 60 64 72 79 87 83 80 103 103 103 112 112 136 139 153 132 221 Naked Turns . | . . . . . . . . . . . . . . . . . . . . . . . . . . . . . . . . . . . Heaviest Build 115 | 14 94 94 105 115 99 22 24 24 24 24 24 27 25 25 25 30 31 38 27 60 57 56 26 31 26 26 33 33 39 45 49 53 68 58 Greatest Support 95 | 40 40 40 43 63 60 25 27 27 27 27 27 27 27 27 27 27 27 27 27 95 95 95 27 39 30 30 34 34 42 58 70 70 70 60 Greatest Overweight (x) 5 | . 2 4 4 5 1 . . . . . . . . . . 1 1 1 . 3 . . . . . . . . . 1 . 2 1 . Average Overweight (x) . | . 1 2 2 1 . . . . . . . . . . . . . . . . . . . . . . . . . . . . . . Largest Inventory Capacity 25 | 8 25 25 25 25 25 10 10 10 10 10 10 10 10 10 10 10 10 10 10 15 15 15 10 10 10 10 10 10 10 10 10 10 14 14 Average Capacity 17 | 7 23 25 25 25 10 10 10 10 10 10 10 10 10 10 10 10 10 10 10 14 15 11 10 10 10 10 10 10 10 10 10 10 11 14 Most Carried 25 | 3 25 25 25 25 25 10 10 10 10 10 10 10 10 10 10 10 10 10 10 15 15 15 10 10 10 10 10 9 10 10 10 10 13 14 Average Carried 16 | 1 19 25 24 24 10 9 9 10 10 10 10 9 10 10 9 9 9 9 9 14 15 11 9 9 10 10 9 9 9 9 8 9 9 12 Final Capacity 25 | 8 25 25 25 25 10 10 10 10 10 10 10 10 10 10 10 10 10 10 10 15 15 10 10 10 10 10 10 10 10 10 10 10 14 14 Final Carried 25 | 3 25 25 25 25 10 10 10 10 10 10 10 10 10 10 10 10 10 10 10 15 15 10 10 10 10 10 9 9 10 8 10 9 12 13 Class Distribution -------------------- 29% | Mutant 21% | Hacker-Sprinter 17% | Scavenger-Mutant 10% | Hacker-Scout 8% | Hacker-Mutant 3% | Machinist-Ninja Dominant Class ---------------- Mutant | -10/Materials Mutant | -10/Mines Scavenger-Mutant | -9/Materials Mutant | -8/Materials Hacker-Sprinter | -7/Factory Hacker-Sprinter | -7/Waste Hacker-Sprinter | -7/Factory Hacker-Sprinter | -7/Lower Caves Hacker-Sprinter | -7/Lower Caves Hacker-Sprinter | -7/Data Miner Hacker-Sprinter | -6/Proximity Caves Hacker-Sprinter | -6/Factory Hacker-Sprinter | -6/Lower Caves Hacker-Sprinter | -6/Lower Caves Hacker-Sprinter | -6/Zion Hacker-Sprinter | -5/Proximity Caves Hacker-Sprinter | -5/Factory Hacker-Sprinter | -5/Waste Hacker-Sprinter | -5/Factory Hacker-Mutant | -5/Extension Hacker-Mutant | -5/Cetus Hacker-Sprinter | -5/Archives Hacker-Sprinter | -5/Hub_04(d) Hacker-Scout | -4/Factory Hacker-Scout | -4/Upper Caves Hacker-Scout | -4/Upper Caves Hacker-Scout | -4/Warlord Hacker-Scout | -3/Proximity Caves Hacker-Scout | -3/Research Hacker-Scout | -3/Testing Hacker-Ninja | -2/Research Machinist-Scout | -2/Quarantine Machinist-Ninja | -2/Section 7 Alien-Sigix | -1/Access Resources | -11 -10 -10 -9 -8 -7 -7 -7 -7 -7 -7 -6 -6 -6 -6 -6 -5 -5 -5 -5 -5 -5 -5 -5 -4 -4 -4 -4 -3 -3 -3 -2 -2 -2 -1 ----------- Run | Yrd Mat Min Mat Mat Fac Was Fac Low Low Dat Pro Fac Low Low Zio Pro Fac Was Fac Ext Cet Arc Hub Fac Upp Upp War Pro Res Tes Res Qua Sec Acc Matter Collected 6322 | 266 89 30 826 524 252 20 251 30 20 . 90 62 97 . 146 105 383 225 88 365 76 177 100 336 . . . 274 200 150 187 217 703 33 Remotely . | . . . . . . . . . . . . . . . . . . . . . . . . . . . . . . . . . . . Salvage Created 9998 | 16 651 467 1883 1949 169 . 408 . . . . 64 . . . 313 450 155 23 369 77 130 132 269 . . . . 141 238 177 94 841 982 Parts 594 | 3 54 37 125 91 12 . 23 . . . . 13 . . . 11 25 7 . 16 1 13 2 15 . . . . 5 19 7 11 56 48 Haulers Intercepted 20 | . 2 . 5 5 2 . 3 . . . . . . . . . . . . . . . 1 . . . . . . . 1 . 1 . Recyclers Shooed 10 | . 1 2 1 1 . . . . . . . . . . . . 1 . . . . . . . . . . . 1 . . . . 3 Parts Field Recycled . | . . . . . . . . . . . . . . . . . . . . . . . . . . . . . . . . . . . Retrieved Matter . | . . . . . . . . . . . . . . . . . . . . . . . . . . . . . . . . . . . Parts Self-Destructed 12 | . . . . . . . . . 4 . . . . . . 8 . . . . . . . . . . . . . . . . . . Prevented 5 | . . . . . . . . . 1 . 2 . . . . . . . . . . . . . 2 . . . . . . . . . Kills | -11 -10 -10 -9 -8 -7 -7 -7 -7 -7 -7 -6 -6 -6 -6 -6 -5 -5 -5 -5 -5 -5 -5 -5 -4 -4 -4 -4 -3 -3 -3 -2 -2 -2 -1 ------- Run | Yrd Mat Min Mat Mat Fac Was Fac Low Low Dat Pro Fac Low Low Zio Pro Fac Was Fac Ext Cet Arc Hub Fac Upp Upp War Pro Res Tes Res Qua Sec Acc Combat Hostiles Destroyed 142 | . 16 11 36 31 . . 3 . . . . . . . . 10 5 . . 6 1 . . . . . . . . 1 1 . 4 17 Melee 9 | . . . . . . . 3 . . . . . . . . 1 2 . . . . . . . . . . . . . 1 . 2 . Guns 72 | . 10 . 27 21 . . . . . . . . . . . . . . . . . . . . . . . . . . . . 2 12 Cannons 29 | . 5 11 6 5 . . . . . . . . . . . . 1 . . . . . . . . . . . . 1 . . . . AOE 28 | . . . 2 4 . . . . . . . . . . . 9 2 . . 6 . . . . . . . . . . . . . 5 Classes Destroyed 23 | 1 7 1 2 2 . . 1 . . . . . . . . 2 . 1 . 2 . . . . . . . . . 1 . . 1 2 Worker 14 | . 1 . 4 2 . . . . . . . . . . . . 5 . . . . . . . . . . . 1 . . . . 1 Builder 17 | . 1 . 1 1 . . . . . . . 1 . . . . . . . . . . . 2 . . . . . 3 . 2 6 . Tunneler 2 | 1 . 1 . . . . . . . . . . . . . . . . . . . . . . . . . . . . . . . . Hauler 20 | . 2 . 5 5 2 . 3 . . . . . . . . . . . . . . . 1 . . . . . . . 1 . 1 . Recycler 12 | . . . . 3 . . 1 . . . . . . . . . 1 . . 1 . . . 1 . . . . 1 1 . . 2 1 Minesweeper 1 | . . . . . . . . . . . . . . . . 1 . . . . . . . . . . . . . . . . . . Mechanic 1 | . . . . . . . . . . . . . . . . . . . . 1 . . . . . . . . . . . . . . Operator 11 | . 2 . 1 1 . . . . . . . 1 . . . . . . . 1 . 4 . . . . . . . . . . 1 . Drone 2 | . . . . . . . . . . . . . . . . 1 . . . . . . . . . . . . . . 1 . . . Watcher 29 | . 3 . 5 5 2 . 2 . . . . 1 . . . . 2 . 1 1 . . 1 3 . . . . . . 1 1 1 . Swarmer 39 | . 8 3 7 8 . . . . . . . . . . . . 3 . . . . . . . . . . . . . . . . 10 Saboteur 1 | . . . . . . . . . . . . . . . . . . . . . . . . . . . . . . . . . . 1 Grunt 60 | . 8 6 18 11 . . 1 . . . . . . . . 9 . . . 5 . . . . . . . . . . . . . 2 Brawler 2 | . . . 1 . . . . . . . . . . . . . . . . . . . . . . . . . . . . . . 1 Duelist 3 | . . . 1 1 . . . . . . . . . . . . . . . . . . . . . . . . . . . . . 1 Researcher 1 | . . . . . . . . . . . . . . . . . . . . . . . . . . . . . . 1 . . . . Sentry 21 | . . 2 9 10 . . . . . . . . . . . . . . . . . . . . . . . . . . . . . . Specialist 1 | . . . . . . . . . . . . . . . . . . . . 1 . . . . . . . . . . . . . . Hunter 2 | . . . . 1 . . . . . . . . . . . . . . . . . . . . . . . . . . . . . 1 Programmer 7 | . . . . . . . 2 . . . . . . . . . 2 . . . . . . . . . . . . 1 . . 2 . Heavy 1 | . . . . . . . . . . . . . . . . . . . . . . . . . . . . . . . . . . 1 Cetus Guard 1 | . . . . . . . . . . . . . . . . . . . . . 1 . . . . . . . . . . . . . Executioner 2 | . . . . . . . . . . . . . . . . . . . . . . . . . . . . . . . . . 2 . Martyr 2 | . . . . . . . . . . . . . . . . . . 2 . . . . . . . . . . . . . . . . Best Kill Streak 19 | 1 5 4 6 8 1 . 2 . . . . 1 . . . 6 3 . 1 7 1 1 1 1 . . . . 1 2 3 2 5 19 Combat Bots Only 17 | . 5 3 5 5 . . 1 . . . . . . . . 6 3 . . 6 1 . . . . . . . . 1 1 . 2 17 Max Kills in Single Turn 6 | 1 2 1 2 4 1 . 1 . . . . 1 . . . 2 2 1 1 3 1 1 1 1 . . . . 1 2 1 1 1 6 Gunslinging 1 | . 1 . 1 . . . . . . . . . . . . . . . . . . . . . . . . . . . . . . . Exploded 5 | . . . 1 2 . . . . . . . . . . . 2 2 . . 3 . . . . . . . . . . . . . 5 Melee 1 | . . . . . . . 1 . . . . . . . . 1 1 . . . . . . . . . . . . . 1 . 1 . Uniques/NPCs Destroyed 1 | . . . . . . . . . . . . . . . . . . . . . 1 . . . . . . . . . . . . . A7 (-5/Cetus) Combat | -11 -10 -10 -9 -8 -7 -7 -7 -7 -7 -7 -6 -6 -6 -6 -6 -5 -5 -5 -5 -5 -5 -5 -5 -4 -4 -4 -4 -3 -3 -3 -2 -2 -2 -1 -------- Run | Yrd Mat Min Mat Mat Fac Was Fac Low Low Dat Pro Fac Low Low Zio Pro Fac Was Fac Ext Cet Arc Hub Fac Upp Upp War Pro Res Tes Res Qua Sec Acc Hostile Shots Fired 1217 | . 93 49 185 223 12 . 49 . 2 . 14 10 . . . 4 70 . 6 43 7 2 3 29 . . 10 5 10 41 64 30 186 70 Missed 496 | . 26 14 51 67 8 . 25 . 1 . 12 7 . . . 2 35 . 6 14 6 1 1 16 . . 4 2 4 26 43 16 80 29 Damage Taken 11757 | . 766 445 1772 2428 98 . 272 . 12 . 26 45 . . . 36 643 27 194 577 55 23 81 227 . . 119 68 128 411 413 824 1773 294 Core 2150 | . 54 111 302 254 . . 124 . . . . 20 . . . . 99 . 64 46 28 . 41 98 . . 17 . 17 57 20 193 523 82 Absorbed by Shields 632 | . . . . 174 . . . . . . . . . . . . . . . 111 26 . . . . . . . . . . . . 321 Redirected to Shielding 530 | . . . . . . . . . . . . . . . . . 59 . 40 77 7 . 26 41 . . . 13 41 47 40 79 60 . Ignored by Resistances 2069 | . . . 4 124 . . . . . . . . . . . . . . . 109 . . . . . . . . . . . . 1196 636 Regen/Repaired (Parts) 1611 | . . . 170 148 . . . . . . . . . . . . . 57 97 133 . . . 323 . . . . 184 . . 313 186 . Core Remaining (%) 70 | 100 . 34 24 53 . . . . . . 82 . . . . 97 . . . . . . 72 . . . . 90 . 94 . . 33 94 Volleys Fired 491 | 1 68 24 100 128 . . . . . . . 3 1 . . 22 22 . . 10 11 4 . 5 . . . . . 15 . 11 29 37 Largest 2 | 2 2 2 2 2 . . . . . . . 1 1 . . 1 1 . . 1 1 1 . 1 . . . . . 1 . 1 2 2 Hottest 200 | 90 120 120 130 122 . . . . . . . 85 85 . . 85 85 . . 85 85 85 . 65 . . . . . 66 . 66 200 200 Shots Fired 861 | 2 132 48 206 256 . . . . . . . 3 1 . . 22 22 . . 12 11 5 . 5 . . . . . 15 . 11 43 67 Gun 594 | 2 100 . 163 235 . . . . . . . . . . . . . . . . . . . . . . . . . . . . 28 66 Cannon 241 | . 32 48 43 17 . . . . . . . 2 1 . . 6 21 . . 9 11 5 . 5 . . . . . 15 . 11 15 . Launcher 25 | . . . . 4 . . . . . . . . . . . 16 1 . . 3 . . . . . . . . . . . . . 1 Special 1 | . . . . . . . . . . . . 1 . . . . . . . . . . . . . . . . . . . . . . Kinetic 153 | . . . 56 51 . . . . . . . . . . . . . . . . . . . 5 . . . . . 15 . 11 15 . Thermal 536 | 2 132 48 98 201 . . . . . . . 2 1 . . 6 21 . . 9 11 5 . . . . . . . . . . . . Explosive 25 | . . . . 4 . . . . . . . . . . . 16 1 . . 3 . . . . . . . . . . . . . 1 Electromagnetic 52 | . . . 52 . . . . . . . . . . . . . . . . . . . . . . . . . . . . . . . Slashing 94 | . . . . . . . . . . . . . . . . . . . . . . . . . . . . . . . . . 28 66 Robot Hit Streak 32 | 1 17 9 14 32 . . . . . . . . . . . 10 2 . . 6 7 4 . . . . . . . 2 . . 8 17 Robot Miss Streak 9 | . 5 3 9 5 . . . . . . . . . . . 2 2 . . 1 2 1 . . . . . . . 2 . . 2 1 Penetration Max 1 | . . . . . . . . . . . . . . . . . . . . . . . . . . . . . . . . . . 1 Secondary Targets 9 | . 2 . 3 . . . . . . . . . . . . . . . . . . . . . . . . . . . . . 1 3 Max Gunslinging Chain 1 | . 1 . 1 . . . . . . . . . . . . . . . . . . . . . . . . . . . . . 1 1 Shots Hit Robots 696 | 1 81 27 152 179 8 . 25 . . . . 5 1 . 8 15 20 4 1 11 7 22 7 19 . . 3 . 12 10 4 4 27 43 Core Hits 374 | 1 33 17 108 77 3 . 8 . . . . 3 . . . 29 11 2 . 13 3 5 1 6 . . . . 3 4 3 1 14 29 Critical Kills 2 | . . . 1 . . . . . . . . . . . . . . . . . 1 . . . . . . . . . . . . . Critical Parts Destroyed . | . . . . . . . . . . . . . . . . . . . . . . . . . . . . . . . . . . . Critical Strikes 35 | . 3 . 4 15 1 . 1 . . . . . . . . . 1 . . 1 1 . . 2 . . . . 1 . . . 5 . Burn 21 | . 3 . 3 15 . . . . . . . . . . . . . . . . . . . . . . . . . . . . . . Meltdown 2 | . . . 1 . . . . . . . . . . . . . . . . . 1 . . . . . . . . . . . . . Sever 7 | . . . . . 1 . 1 . . . . . . . . . 1 . . 1 . . . 1 . . . . . . . . 2 . Impale 5 | . . . . . . . . . . . . . . . . . . . . . . . . 1 . . . . 1 . . . 3 . Melee Attacks 478 | . . . 3 . 17 . 60 . 3 . 4 29 4 . 8 12 39 4 7 2 . 20 13 85 . 3 4 3 45 25 24 20 44 . Impact . | . . . . . . . . . . . . . . . . . . . . . . . . . . . . . . . . . . . Slashing 272 | . . . 3 . 16 . 60 . 3 . 4 28 3 . . 12 37 4 7 2 . 14 9 70 . . . . . . . . . . Piercing 163 | . . . . . . . . . . . . . . . . . . . . . . . . 11 . 3 1 3 39 19 24 20 43 . Sneak Attacks 89 | . . . . . 5 . 4 . . . . 2 . . 8 1 8 4 . 1 . 14 5 4 . . 3 . 9 8 1 2 10 . Combat Hostiles 1 | . . . . . 1 . . . . . . . . . . . . . . . . . . . . . . . . . . . . . Follow-up Attacks . | . . . . . . . . . . . . . . . . . . . . . . . . . . . . . . . . . . . Damage Inflicted 25286 | 12 1177 554 2776 3847 537 . 1331 . . . . 318 . . . 1505 1346 311 57 2018 273 1018 271 840 . . . . 327 671 365 395 2175 3162 Guns 9094 | 12 828 . 1875 3094 . . . . . . . . . . . . . . . . . . . . . . . . . . . . 843 2442 Cannons 2580 | . 308 499 590 264 . . . . . . . . . . . 93 146 . . 188 273 119 . . . . . . . 100 . . . . Explosions 4766 | . . . 292 393 . . . . . . . . . . . 1188 261 . . 1725 . . . . . . . . . 217 . . . 690 Melee 8538 | . . . . . 537 . 1331 . . . . 318 . . . 224 939 311 57 105 . 899 271 840 . . . . 327 354 365 395 1265 . Ramming 308 | . 41 55 19 96 . . . . . . . . . . . . . . . . . . . . . . . . . . . . 67 30 Kinetic 1194 | . . . 507 587 . . . . . . . . . . . . . . . . . . . . . . . . . 100 . . . . Thermal 6720 | 12 1136 499 1483 2771 . . . . . . . . . . . 93 146 . . 188 273 119 . . . . . . . . . . . . Explosive 4474 | . . . . 393 . . . . . . . . . . . 1188 261 . . 1725 . . . . . . . . . 217 . . . 690 Electromagnetic 767 | . . . 767 . . . . . . . . . . . . . . . . . . . . . . . . . . . . . . . Impact . | . . . . . . . . . . . . . . . . . . . . . . . . . . . . . . . . . . . Slashing 8980 | . . . . . 537 . 1331 . . . . 318 . . . 224 939 311 57 105 . 899 271 703 . . . . . . . . 843 2442 Piercing 2843 | . . . . . . . . . . . . . . . . . . . . . . . . 137 . . . . 327 354 365 395 1265 . Highest Corruption 8 | . . . 8 2 3 3 6 1 1 1 1 . . . . . 3 3 3 3 3 3 1 1 1 1 1 . . 2 . 7 7 . Average Corruption 3 | . . . 6 2 2 3 3 1 1 1 1 . . . . . 2 3 3 3 3 2 1 1 1 1 1 . . 1 . 4 3 . Corruption Purged 8 | . . . . . . . 5 . . . . . . . . . . . . . . 3 . . . . . . . . . . . . Corruption Blocked . | . . . . . . . . . . . . . . . . . . . . . . . . . . . . . . . . . . . Effects 280 | . . . 123 33 11 1 20 1 1 . . . . . . . 2 7 6 31 8 2 . 4 . 2 . . . . . 12 16 . Message Errors 74 | . . . 32 8 3 1 5 1 . . . . . . . . . 3 3 7 2 . . 2 . 2 . . . . . 1 4 . Matter Fused 78 | . . . 34 7 7 . 7 . . . . . . . . . . 1 1 11 3 . . . . . . . . . . 3 4 . Heat Flow Errors 25 | . . . 11 3 . . 4 . . . . . . . . . . 1 2 2 . 1 . . . . . . . . . . 1 . Energy Discharges 32 | . . . 13 4 1 . . . . . . . . . . . 1 1 . 4 1 . . . . . . . . . . 4 3 . Parts Fused 6 | . . . 1 . . . 2 . . . . . . . . . . . . 2 . . . . . . . . . . . . 1 . Data Loss (minor) 33 | . . . 12 8 . . 1 . 1 . . . . . . . 1 1 . 1 2 . . 2 . . . . . . . 3 1 . Data Loss (major) 7 | . . . 6 . . . . . . . . . . . . . . . . 1 . . . . . . . . . . . . . . Misfires 14 | . . . 10 1 . . . . . . . . . . . . . . . 2 . 1 . . . . . . . . . . . . Alerts 10 | . . . 3 2 . . 1 . . . . . . . . . . . . 1 . . . . . . . . . . . 1 2 . Weapon Failures 1 | . . . 1 . . . . . . . . . . . . . . . . . . . . . . . . . . . . . . . Overload Shots . | . . . . . . . . . . . . . . . . . . . . . . . . . . . . . . . . . . . Overflow Damage 2455 | . . . 49 2 91 . 120 . . . . 77 . . . 112 316 24 45 112 . 310 80 168 . . . . 36 182 19 113 590 9 Projectiles 56 | . . . 15 . . . . . . . . . . . . . 17 . . 24 . . . . . . . . . . . . . . Explosions 244 | . . . 34 . . . . . . . . . . . . 8 90 . . 88 . . . . . . . . . 15 . . . 9 Melee 2155 | . . . . 2 91 . 120 . . . . 77 . . . 104 209 24 45 . . 310 80 168 . . . . 36 167 19 113 590 . Knockbacks 2 | . . 1 . . . . . . . . . . . . . . . . . . . . . . . . . . . 1 . . . . Impact 1 | . . 1 . . . . . . . . . . . . . . . . . . . . . . . . . . . . . . . . Kinetic 1 | . . . . . . . . . . . . . . . . . . . . . . . . . . . . . . 1 . . . . Secondary . | . . . . . . . . . . . . . . . . . . . . . . . . . . . . . . . . . . . Self-Inflicted Damage 310 | . . . 116 64 . . . . . . . . . . . . . . . 46 . . . . . . . . . 84 . . . . Shots 8 | . . . 3 1 . . . . . . . . . . . . . . . 3 . . . . . . . . . 1 . . . . Rammed 29 | . 7 7 7 8 . . . . . . . . . . . . . . . . . . . . . . . . . . . . . . Targets Rammed 38 | . 8 7 7 11 . . . . . . . . . . . . . . . . . . . . . . . . . . . . 3 2 Kicked 5 | . . . . . . . . . . . . . . . . . . . . . . . . . . . . . . . . . 3 2 Crushed 4 | . 1 . . 3 . . . . . . . . . . . . . . . . . . . . . . . . . . . . . . Highest Temperature 353 | 30 207 252 272 148 10 . 273 . . . . 42 40 3 . 240 238 231 187 274 . 132 . 258 . . 14 14 164 144 202 353 228 . Average Temperature 73 | 18 63 92 67 47 6 . 113 . . . . 19 8 2 . 92 73 81 50 72 . 53 . 85 . . 2 2 31 27 62 143 74 . Received Heat Transfer 2710 | . 336 201 567 767 36 . 42 . . . . . . . . 9 108 . 12 149 . . . 85 . . 33 12 21 9 36 . 243 44 Effects 14 | . . . 3 . . . . . . . . . . . . . . . . . . . . . . . . . . . . 11 . . Shutdowns 1 | . . . . . . . . . . . . . . . . . . . . . . . . . . . . . . . . 1 . . Energy Bleed 2 | . . . . . . . . . . . . . . . . . . . . . . . . . . . . . . . . 2 . . Interference 10 | . . . 3 . . . . . . . . . . . . . . . . . . . . . . . . . . . . 7 . . Damage (minor) 1 | . . . . . . . . . . . . . . . . . . . . . . . . . . . . . . . . 1 . . Siege Activations . | . . . . . . . . . . . . . . . . . . . . . . . . . . . . . . . . . . . Robots Corrupted . | . . . . . . . . . . . . . . . . . . . . . . . . . . . . . . . . . . . Combat Hostiles . | . . . . . . . . . . . . . . . . . . . . . . . . . . . . . . . . . . . Parts Fried 5 | . . . 5 . . . . . . . . . . . . . . . . . . . . . . . . . . . . . . . Impact Corruptions 2 | . . . . 1 . . . . . . . . . . . . . . . . . . . . . . . . . . . . 1 . Robots Melted 4 | . 1 . 1 1 . . . . . . . . . . . . . . . . 1 . . . . . . . . . . . . . Combat Hostiles 4 | . 1 . 1 1 . . . . . . . . . . . . . . . . 1 . . . . . . . . . . . . . Parts Melted 26 | . 4 . 5 17 . . . . . . . . . . . . . . . . . . . . . . . . . . . . . . Heat Transferred 14106 | 25 3020 1036 2717 6364 . . . . . . . . . . . 111 148 . . 204 333 148 . . . . . . . . . . . . Parts Sabotaged . | . . . . . . . . . . . . . . . . . . . . . . . . . . . . . . . . . . . Parts Stolen . | . . . . . . . . . . . . . . . . . . . . . . . . . . . . . . . . . . . Parts Stripped . | . . . . . . . . . . . . . . . . . . . . . . . . . . . . . . . . . . . Power Chain Reactions 4 | . . . 4 . . . . . . . . . . . . . . . . . . . . . . . . . . . . . . . Alert | -11 -10 -10 -9 -8 -7 -7 -7 -7 -7 -7 -6 -6 -6 -6 -6 -5 -5 -5 -5 -5 -5 -5 -5 -4 -4 -4 -4 -3 -3 -3 -2 -2 -2 -1 ------- Run | Yrd Mat Min Mat Mat Fac Was Fac Low Low Dat Pro Fac Low Low Zio Pro Fac Was Fac Ext Cet Arc Hub Fac Upp Upp War Pro Res Tes Res Qua Sec Acc Peak Influence 2205 | 5 152 105 558 882 561 137 258 . . . . 192 . . . . 494 150 514 1160 806 450 887 549 . . . . 299 335 397 302 2067 2205 Initial 1240 | . 3 5 29 233 395 137 95 . . . . 94 . . . . 285 63 105 251 649 242 37 432 . . . . 90 . 188 219 75 1240 Average 297 | . 55 29 196 523 436 137 159 . . . . 120 . . . . 344 118 365 485 671 266 315 319 . . . . 82 155 328 179 500 1439 Maximum Alert Level 5 | . . . 2 3 2 . 1 . . . . . . . . . 2 . 2 4 3 2 3 2 . . . . 1 1 1 1 5 5 Low Security (%) 47 | 100 100 100 67 10 . 100 83 . . . . 100 . . . . 3 100 15 . . 30 46 21 . . . . 91 63 3 56 2 . Level 1 24 | . . . 14 30 34 . 16 . . . . . . . . . 78 . 41 27 . 37 23 49 . . . . 8 36 96 43 55 . Level 2 20 | . . . 17 24 65 . . . . . . . . . . . 18 . 43 70 79 31 7 28 . . . . . . . . 33 . Level 3 5 | . . . . 34 . . . . . . . . . . . . . . . . 20 . 22 . . . . . . . . . . . Level 4 1 | . . . . . . . . . . . . . . . . . . . . 1 . . . . . . . . . . . . . 80 Level 5 . | . . . . . . . . . . . . . . . . . . . . . . . . . . . . . . . . . . . High Security . | . . . . . . . . . . . . . . . . . . . . . . . . . . . . . . . . . . . Max Security . | . . . . . . . . . . . . . . . . . . . . . . . . . . . . . . . . . 9 19 Squads Dispatched 103 | . 3 . 4 6 6 . 6 . . . . 4 . . . . 7 . 4 3 . . 4 8 . . . . 8 2 4 1 22 11 Investigation 39 | . 1 . 3 1 4 . 2 . . . . 3 . . . . 3 . 2 1 . . 2 5 . . . . 6 1 2 1 2 . Extermination 8 | . . . . . 1 . 2 . . . . . . . . . 1 . 1 . . . . 1 . . . . . . . . 2 . Reinforcement 28 | . 2 . 1 2 1 . 2 . . . . 1 . . . . 2 . . . . . . 2 . . . . 2 1 2 . 6 4 Assault 23 | . . . . . . . . . . . . . . . . . . . 1 2 . . 1 . . . . . . . . . 12 7 Garrison 5 | . . . . 3 . . . . . . . . . . . . 1 . . . . . 1 . . . . . . . . . . . Intercept . | . . . . . . . . . . . . . . . . . . . . . . . . . . . . . . . . . . . Searches Triggered 5 | . . . . . . . . . . . . . . . . . 2 . . . . . . 1 . . . . . . . . 2 . Data Miner Redirects 1 | . . . . . . . . . . . . . . . . . . . . . . . . . . . . . . . . . 1 . Construction Impeded 1 | . . . . . . . . . . . . . . . . . 1 . . . . . . . . . . . . . . . . . Haulers Reinforced 2 | . . . . . 1 . 1 . . . . . . . . . . . . . . . . . . . . . . . . . . . Active Scanning Responses . | . . . . . . . . . . . . . . . . . . . . . . . . . . . . . . . . . . . Cargo Convoy Interrupts . | . . . . . . . . . . . . . . . . . . . . . . . . . . . . . . . . . . . Stealth | -11 -10 -10 -9 -8 -7 -7 -7 -7 -7 -7 -6 -6 -6 -6 -6 -5 -5 -5 -5 -5 -5 -5 -5 -4 -4 -4 -4 -3 -3 -3 -2 -2 -2 -1 --------- Run | Yrd Mat Min Mat Mat Fac Was Fac Low Low Dat Pro Fac Low Low Zio Pro Fac Was Fac Ext Cet Arc Hub Fac Upp Upp War Pro Res Tes Res Qua Sec Acc Distress Signals 31 | . 2 . 3 . . . . . . . . 2 . . . 1 . . . 2 2 1 1 3 . . . . 7 3 2 . 2 . Communications Jammed 5 | . . . . . . . . . . . . . . . . 2 . . . . . . . . . . . . . . 3 . . . Distress Signals . | . . . . . . . . . . . . . . . . . . . . . . . . . . . . . . . . . . . Times Spotted 626 | . 31 11 54 53 15 . 19 . 1 . 9 11 3 . . 15 27 7 6 57 10 16 13 46 . 2 8 13 13 22 23 23 84 34 Peak Tracking Total 35 | . 4 3 7 5 6 . 5 . 1 . 6 8 3 . . 7 7 6 4 13 5 2 7 9 . 3 8 9 4 6 7 7 35 19 Tactical Retreats 97 | . 2 . 2 7 4 . 7 . . . 3 5 1 . . 1 9 1 . 9 . . 1 14 . 1 . 2 3 5 5 1 13 1 Traps | -11 -10 -10 -9 -8 -7 -7 -7 -7 -7 -7 -6 -6 -6 -6 -6 -5 -5 -5 -5 -5 -5 -5 -5 -4 -4 -4 -4 -3 -3 -3 -2 -2 -2 -1 ------- Run | Yrd Mat Min Mat Mat Fac Was Fac Low Low Dat Pro Fac Low Low Zio Pro Fac Was Fac Ext Cet Arc Hub Fac Upp Upp War Pro Res Tes Res Qua Sec Acc Traps Triggered 19 | . 1 . 1 3 3 . 2 . . . . 1 . . . . 1 . 1 2 . . . 1 . . . . . . . 3 . . Indirectly . | . . . . . . . . . . . . . . . . . . . . . . . . . . . . . . . . . . . Trap Hack Attempts 16 | . . . . . . . . . . . . . . . . . . . . . . . . 16 . . . . . . . . . . Triggered . | . . . . . . . . . . . . . . . . . . . . . . . . . . . . . . . . . . . Disarmed 1 | . . . . . . . . . . . . . . . . . . . . . . . . 1 . . . . . . . . . . Reprogrammed 6 | . . . . . . . . . . . . . . . . . . . . . . . . 6 . . . . . . . . . . Reused 6 | . . . . . . . . . . . . . . . . . . . . . . . . 6 . . . . . . . . . . Traps Extracted . | . . . . . . . . . . . . . . . . . . . . . . . . . . . . . . . . . . . Installed . | . . . . . . . . . . . . . . . . . . . . . . . . . . . . . . . . . . . Triggered 20 | . . . . . . . . . . . 3 . . . . 1 . . . . . . . 6 2 . 8 . . . . . . . Machines | -11 -10 -10 -9 -8 -7 -7 -7 -7 -7 -7 -6 -6 -6 -6 -6 -5 -5 -5 -5 -5 -5 -5 -5 -4 -4 -4 -4 -3 -3 -3 -2 -2 -2 -1 ---------- Run | Yrd Mat Min Mat Mat Fac Was Fac Low Low Dat Pro Fac Low Low Zio Pro Fac Was Fac Ext Cet Arc Hub Fac Upp Upp War Pro Res Tes Res Qua Sec Acc Machines Disabled 47 | . 1 . 4 1 . . 1 . 1 . . 1 . . . . . . . 8 . 1 7 . . . . . . 3 . 6 12 1 Max in Single Turn 1 | . 1 . 1 1 . . 1 . 1 . . 1 . . . . . . . 1 . . 1 . . . . . . 1 . 1 1 1 Garrison Access 15 | . . . . 1 . . 1 . . . . 3 . . . . 2 . . . . . 1 3 . . . . 1 1 1 . 1 . Network Hub 1 | . . . . . . . . . . . . . . . . . . . . . . . 1 . . . . . . . . . . . Machines Repaired . | . . . . . . . . . . . . . . . . . . . . . . . . . . . . . . . . . . . Machines Dismantled 2 | . . . . . . . . . . . . . . . . . . . . 1 . . 1 . . . . . . . . . . . Machines Sabotaged . | . . . . . . . . . . . . . . . . . . . . . . . . . . . . . . . . . . . Overloaded Fab Kills . | . . . . . . . . . . . . . . . . . . . . . . . . . . . . . . . . . . . Hacking | -11 -10 -10 -9 -8 -7 -7 -7 -7 -7 -7 -6 -6 -6 -6 -6 -5 -5 -5 -5 -5 -5 -5 -5 -4 -4 -4 -4 -3 -3 -3 -2 -2 -2 -1 --------- Run | Yrd Mat Min Mat Mat Fac Was Fac Low Low Dat Pro Fac Low Low Zio Pro Fac Was Fac Ext Cet Arc Hub Fac Upp Upp War Pro Res Tes Res Qua Sec Acc Machines Accessed 202 | . 6 . 17 15 12 . 13 . . 3 . 14 1 . . . 11 . 7 4 2 . 5 21 . . 4 . 21 7 5 15 17 2 Terminals 121 | . 5 . 11 8 6 . 8 . . . . 9 1 . . . 5 . 3 3 2 . 4 10 . . . . 11 4 2 12 15 2 Fabricators 20 | . . . . . 3 . 1 . . . . 1 . . . . 3 . 2 . . . . 4 . . . . 3 1 2 . . . Repair Stations 15 | . . . 2 2 1 . 1 . . . . . . . . . . . 1 1 . . . 2 . . . . 2 . . 2 1 . Recycling Units 11 | . 1 . 2 2 1 . 1 . . . . 1 . . . . 1 . 1 . . . . 1 . . . . . . . . . . Scanalyzers 12 | . . . 2 2 1 . . . . . . . . . . . . . . . . . . 1 . . . . 4 1 . 1 . . Garrison Access 16 | . . . . 1 . . 2 . . . . 3 . . . . 2 . . . . . 1 3 . . . . 1 1 1 . 1 . Total Hacks 712 | . 19 . 59 37 37 . 31 . . 26 . 43 2 . . . 33 . 18 9 9 . 21 115 . . 6 . 104 37 14 35 54 3 Successful 420 | . 11 . 29 19 20 . 7 . . 26 . 27 2 . . . 23 . 11 5 5 . 13 76 . . 6 . 64 21 9 22 23 1 Failed 289 | . 8 . 29 18 17 . 24 . . . . 16 . . . . 9 . 7 4 4 . 8 38 . . . . 40 16 5 13 31 2 Catastrophic 55 | . 4 . 2 4 7 . 9 . . . . 2 . . . . . . 1 1 . . 1 1 . . . . 9 1 1 3 9 . Database Lockouts 3 | . . . 1 . . . . . . . . . . . . . 1 . . . . . . 1 . . . . . . . . . . Manual 282 | . 14 . 32 16 14 . 11 . . . . 30 4 . 1 . 14 . 6 4 1 . 14 42 . . 1 . 37 11 2 11 17 . Terminals 465 | . 18 . 38 21 22 . 18 . . . . 36 2 . . . 21 . 6 5 9 . 19 76 . . . . 59 28 7 29 48 3 Fabricators 56 | . . . . . 7 . 4 . . . . 3 . . . . 7 . 5 . . . . 12 . . . . 8 4 6 . . . Repair Stations 52 | . . . 8 5 1 . 1 . . . . . . . . . . . 3 4 . . . 17 . . . . 6 . . 4 3 . Recycling Units 21 | . 1 . 5 3 1 . 3 . . . . 1 . . . . 2 . 4 . . . . 1 . . . . . . . . . . Scanalyzers 62 | . . . 8 6 6 . . . . . . . . . . . . . . . . . . 6 . . . . 30 4 . 2 . . Garrison Access 24 | . . . . 2 . . 5 . . . . 3 . . . . 3 . . . . . 2 3 . . . . 1 1 1 . 3 . Terminal Hacks 199 | . 7 . 11 3 3 . 3 . . 26 . 13 2 . . . 11 . . 1 5 . 6 38 . . 6 . 23 10 2 13 15 1 Record 22 | . . . . . . . . . . 6 . . 2 . . . . . . . 4 . . . . . 4 . 1 . . 4 1 . Part Schematic 27 | . 1 . 2 . . . . . . 13 . 1 . . . . 1 . . . . . . 5 . . . . 3 . 1 . . . Robot Schematic 5 | . 1 . . . . . . . . 4 . . . . . . . . . . . . . . . . . . . . . . . . Robot Analysis 20 | . 2 . 4 . . . 1 . . . . 1 . . . . 1 . . . . . . 4 . . . . 4 1 . . 2 . Prototype ID Bank 25 | . 1 . 2 2 . . . . . 3 . 1 . . . . 3 . . . . . . 3 . . . . 3 2 . 3 2 . Open Door 10 | . . . . . . . . . . . . . . . . . . . . . 1 . . . . . 2 . . . . 1 5 1 Open DSF 1 | . . . . . . . . . . . . . . . . . . . . . . . . . . . . . 1 . . . . . Branch Access Points 8 | . . . 1 . 1 . 1 . . . . 1 . . . . . . . . . . 1 1 . . . . 1 1 . . . . Emergency Access Points 1 | . . . . . . . . . . . . . . . . . . . . . . . . 1 . . . . . . . . . . Machine Index 6 | . . . . . . . . . . . . 1 . . . . 1 . . . . . 1 . . . . . 1 1 1 . . . Terminal Index 8 | . . . . . 1 . 1 . . . . 1 . . . . 1 . . . . . . 1 . . . . 1 1 . 1 . . Fabricator Index 1 | . . . . . . . . . . . . . . . . . . . . . . . . . . . . . . . . 1 . . Scanalyzer Index 1 | . . . . . . . . . . . . . . . . . . . . . . . . . . . . . . 1 . . . . Garrison Index 2 | . . . . . 1 . . . . . . . . . . . . . . . . . . 1 . . . . . . . . . . Alert Level 3 | . . . . . . . . . . . . . . . . . 1 . . . . . . 1 . . . . 1 . . . . . Unreport Threat 10 | . . . . . . . . . . . . . . . . . 1 . . 1 . . 1 4 . . . . 2 . . 1 . . Locate Traps 11 | . 1 . . . . . . . . . . 2 . . . . . . . . . . 1 3 . . . . . 2 . . 2 . Reprogram Traps 1 | . . . . . . . . . . . . . . . . . . . . . . . . 1 . . . . . . . . . . Maintenance Status 1 | . . . . . . . . . . . . . . . . . . . . . . . . 1 . . . . . . . . . . Security Status 1 | . . . . . . . . . . . . . . . . . . . . . . . . 1 . . . . . . . . . . Surveillance Status 1 | . . . . . . . . . . . . . . . . . . . . . . . . 1 . . . . . . . . . . Patrol Status 1 | . . . . . . . . . . . . 1 . . . . . . . . . . . . . . . . . . . . . . Recall Investigation 5 | . . . . . . . . . . . . 1 . . . . . . . . . . . 3 . . . . 1 . . . . . Recall Extermination 2 | . . . . . . . . . . . . . . . . . . . . . . . . 1 . . . . . . . . 1 . Recall Reinforcements 2 | . . . . . . . . . . . . . . . . . . . . . . . . 2 . . . . . . . . . . Hauler Manifests 8 | . . . . 1 . . . . . . . 2 . . . . 1 . . . . . 1 1 . . . . 1 . . . 1 . Registered Components 2 | . . . 1 . . . . . . . . . . . . . . . . . . . . . . . . . . . . 1 . . Registered Prototypes 2 | . . . . . . . . . . . . . . . . . . . . . . . . 1 . . . . 1 . . . . . Zone Layout 12 | . 1 . 1 . . . . . . . . 1 . . . . 1 . . . . . 1 2 . . . . 2 1 . 1 1 . Fabricator Hacks 43 | . . . . . 7 . . . . . . 2 . . . . 6 . 5 . . . . 9 . . . . 7 2 5 . . . Network Status 5 | . . . . . 1 . . . . . . . . . . . . . 1 . . . . 1 . . . . 1 . 1 . . . Load Schematic 19 | . . . . . 3 . . . . . . 1 . . . . 3 . 2 . . . . 4 . . . . 3 1 2 . . . Build 19 | . . . . . 3 . . . . . . 1 . . . . 3 . 2 . . . . 4 . . . . 3 1 2 . . . Repair Station Hacks 39 | . . . 5 4 1 . . . . . . . . . . . . . 2 4 . . . 13 . . . . 4 . . 4 2 . Scan Component 20 | . . . 3 2 . . . . . . . . . . . . . . 1 2 . . . 7 . . . . 2 . . 2 1 . Repair 18 | . . . 2 2 . . . . . . . . . . . . . . 1 2 . . . 6 . . . . 2 . . 2 1 . Refit 1 | . . . . . 1 . . . . . . . . . . . . . . . . . . . . . . . . . . . . . Recycling Unit Hacks 9 | . 1 . 2 2 . . . . . . . 1 . . . . 1 . 1 . . . . 1 . . . . . . . . . . Retrieve Components 9 | . 1 . 2 2 . . . . . . . 1 . . . . 1 . 1 . . . . 1 . . . . . . . . . . Scanalyzer 52 | . . . 8 6 6 . . . . . . . . . . . . . . . . . . 4 . . . . 24 2 . 2 . . Insert Component 24 | . . . 4 5 3 . . . . . . . . . . . . . . . . . . 2 . . . . 8 1 . 1 . . Analyze 28 | . . . 4 1 3 . . . . . . . . . . . . . . . . . . 2 . . . . 16 1 . 1 . . Garrison Access Hacks 14 | . . . . 1 . . 2 . . . . 3 . . . . 2 . . . . . . 3 . . . . 1 1 1 . . . Unlock Access 1 | . . . . . . . 1 . . . . . . . . . . . . . . . . . . . . . . . . . . . Seal Access 13 | . . . . 1 . . 1 . . . . 3 . . . . 2 . . . . . . 3 . . . . 1 1 1 . . . Unauthorized Hacks 64 | . 3 . 3 3 3 . 2 . . . . 8 . . . . 3 . 3 . . . 7 8 . . . . 5 6 1 3 6 . Terminals 58 | . 3 . 3 3 3 . 2 . . . . 8 . . . . 3 . 1 . . . 6 7 . . . . 5 5 1 3 5 . Track 10 | . . . . . . . . . . . . 2 . . . . . . . . . . 3 2 . . . . . 2 . . 1 . Assimilate 12 | . 1 . . . 2 . 2 . . . . 1 . . . . . . 1 . . . . 1 . . . . 2 1 . 1 . . Botnet 31 | . 1 . 2 3 1 . . . . . . 4 . . . . 2 . . . . . 3 3 . . . . 3 2 1 2 4 . Disrupt 2 | . . . . . . . . . . . . 1 . . . . . . . . . . . 1 . . . . . . . . . . Operators 3 | . 1 . 1 . . . . . . . . . . . . . 1 . . . . . . . . . . . . . . . . . Fabricators . | . . . . . . . . . . . . . . . . . . . . . . . . . . . . . . . . . . . Repair Stations . | . . . . . . . . . . . . . . . . . . . . . . . . . . . . . . . . . . . Recycling Units 2 | . . . . . . . . . . . . . . . . . . . 2 . . . . . . . . . . . . . . . Reject 1 | . . . . . . . . . . . . . . . . . . . 1 . . . . . . . . . . . . . . . Mask 1 | . . . . . . . . . . . . . . . . . . . 1 . . . . . . . . . . . . . . . Scanalyzers 2 | . . . . . . . . . . . . . . . . . . . . . . . . 1 . . . . . 1 . . . . Researchers 1 | . . . . . . . . . . . . . . . . . . . . . . . . . . . . . . 1 . . . . Extract 1 | . . . . . . . . . . . . . . . . . . . . . . . . 1 . . . . . . . . . . Garrison Access 2 | . . . . . . . . . . . . . . . . . . . . . . . 1 . . . . . . . . . 1 . Reprogram 1 | . . . . . . . . . . . . . . . . . . . . . . . 1 . . . . . . . . . . . Jam 1 | . . . . . . . . . . . . . . . . . . . . . . . . . . . . . . . . . 1 . Data Cores Recovered 2 | . . . . . . . . . . . . . . . . . . . . . . . 1 . . . . . . . . . 1 . Used 1 | . . . . . . . . . . . . . . . . . . . . . . . 1 . . . . . . . . . . . Hacking Detections 153 | . 6 . 14 13 11 . 11 . . . . 10 . . . . 9 . 6 4 1 . 3 17 . . . . 15 5 4 11 12 1 Full Trace Events 26 | . . . 1 1 4 . 2 . . . . 2 . . . . 3 . 2 . . . . 4 . . . . 3 1 2 . 1 . Feedback Events 2 | . . . . . 1 . 1 . . . . . . . . . . . . . . . . . . . . . . . . . . . Corruption 2 | . . . . . 1 . 1 . . . . . . . . . . . . . . . . . . . . . . . . . . . Feedback Blocked . | . . . . . . . . . . . . . . . . . . . . . . . . . . . . . . . . . . . Robot Schematics Acquired 8 | . 1 . . . . . . . . 4 . . . . . . . . . . . . . . . . . . . 2 . 1 . . Robots Built . | . . . . . . . . . . . . . . . . . . . . . . . . . . . . . . . . . . . Authchips . | . . . . . . . . . . . . . . . . . . . . . . . . . . . . . . . . . . . Time . | . . . . . . . . . . . . . . . . . . . . . . . . . . . . . . . . . . . Total Robot Build Rating . | . . . . . . . . . . . . . . . . . . . . . . . . . . . . . . . . . . . Part Schematics Acquired 51 | . 1 . 6 1 3 . . . . 13 . 1 . . . . 1 . . . . . . 10 . . . . 9 2 1 3 . . Parts Built 18 | . . . . . 3 . . . . . . 1 . . . . 1 . 2 . . . . 4 . . . . 3 1 3 . . . Authchips . | . . . . . . . . . . . . . . . . . . . . . . . . . . . . . . . . . . . Time 1765 | . . . . . 181 . . . . . . 67 . . . . 257 . 201 . . . . 524 . . . . 263 62 210 . . . Total Part Build Rating 98 | . . . . . 6 . . . . . . 4 . . . . 6 . 8 . . . . 25 . . . . 23 7 19 . . . Parts Repaired 18 | . . . 2 2 . . . . . . . . . . . . . . 1 2 . . . 6 . . . . 2 . . 2 1 . Time 740 | . . . 64 89 . . . . . . . . . . . . . . 19 68 . . . 196 . . . . 62 . . 134 108 . Parts Recycled . | . . . . . . . . . . . . . . . . . . . . . . . . . . . . . . . . . . . Recycled Matter . | . . . . . . . . . . . . . . . . . . . . . . . . . . . . . . . . . . . Retrieved Matter . | . . . . . . . . . . . . . . . . . . . . . . . . . . . . . . . . . . . Retrieved Components 42 | . 2 . 19 18 . . . . . . . 1 . . . . 1 . . . . . . 1 . . . . . . . . . . Parts Scanalyzed 19 | . . . 4 1 3 . . . . . . . . . . . . . . . . . . 2 . . . . 7 1 . 1 . . Part Schematics Acquired 18 | . . . 4 1 3 . . . . . . . . . . . . . . . . . . 2 . . . . 6 1 . 1 . . Parts Damaged 4 | . . . . . . . . . . . . . . . . . . . . . . . . . . . . . 3 . . 1 . . Bothacking | -11 -10 -10 -9 -8 -7 -7 -7 -7 -7 -7 -6 -6 -6 -6 -6 -5 -5 -5 -5 -5 -5 -5 -5 -4 -4 -4 -4 -3 -3 -3 -2 -2 -2 -1 ------------ Run | Yrd Mat Min Mat Mat Fac Was Fac Low Low Dat Pro Fac Low Low Zio Pro Fac Was Fac Ext Cet Arc Hub Fac Upp Upp War Pro Res Tes Res Qua Sec Acc Used RIF Installer . | . . . . . . . . . . . . . . . . . . . . . . . . . . . . . . . . . . . Robots Hacked 26 | . . . . . . . . . . . . . . . 8 . 1 . . . . 4 1 1 . . 2 . 4 4 . . 1 . Non-combat 14 | . . . . . . . . . . . . . . . 3 . 1 . . . . 2 1 1 . . . . 2 3 . . 1 . Combat 12 | . . . . . . . . . . . . . . . 5 . . . . . . 2 . . . . 2 . 2 1 . . . . Robot Hacks Applied 30 | . . . . . . . . . . . . . . . 8 . 1 . . . . 6 1 1 . . 2 . 5 5 . . 1 . parse_system 17 | . . . . . . . . . . . . . . . 8 . . . . . . 4 . . . . 2 . 2 1 . . . . no_distress 6 | . . . . . . . . . . . . . . . . . . . . . . . 1 . . . . . 2 3 . . . . find_chute 1 | . . . . . . . . . . . . . . . . . 1 . . . . . . . . . . . . . . . . . find_recycling 1 | . . . . . . . . . . . . . . . . . . . . . . . . . . . . . 1 . . . . . check_alert 4 | . . . . . . . . . . . . . . . . . . . . . . 2 . 1 . . . . . . . . 1 . find_scanalyzer 1 | . . . . . . . . . . . . . . . . . . . . . . . . . . . . . . 1 . . . . Relay Couplers Released 2 | . . . . . . . . . . . . . . . . . . . . . . . 2 . . . . . . . . . . . Machine Destruction 2 | . . . . . . . . . . . . . . . . . . . . . . . 2 . . . . . . . . . . . Fabnet Peak Effective % . | . . . . . . . . . . . . . . . . . . . . . . . . . . . . . . . . . . . Robots Rewired 13 | . . . . . . . . . . . . . . . . . . . . 13 . . . . . . . . . . . . . . Allies Hacked 3 | . . . . . . . . . . . . . . . . . . . 1 . . . . . . . . . . 1 . 1 . . Hacks Repelled . | . . . . . . . . . . . . . . . . . . . . . . . . . . . . . . . . . . . Allies | -11 -10 -10 -9 -8 -7 -7 -7 -7 -7 -7 -6 -6 -6 -6 -6 -5 -5 -5 -5 -5 -5 -5 -5 -4 -4 -4 -4 -3 -3 -3 -2 -2 -2 -1 -------- Run | Yrd Mat Min Mat Mat Fac Was Fac Low Low Dat Pro Fac Low Low Zio Pro Fac Was Fac Ext Cet Arc Hub Fac Upp Upp War Pro Res Tes Res Qua Sec Acc Total Allies 84 | . . . . . 2 . 2 . . . . 1 . . . . . 18 1 25 5 . 1 1 . . . . 2 1 . 3 . 22 Largest Group 18 | . . . . . 2 . 2 . . . . 1 . . . . . 18 10 12 12 8 6 1 . . . . 2 1 . 2 . 11 Highest-Rated Group 766 | . . . . . 52 . 20 . . . . 26 . . . . . 638 366 496 766 576 449 10 . . . . 51 45 . 192 . 155 Highest-Rated Ally 159 | . . . . . 26 . 10 . . . . 26 . . . . . 50 46 159 159 96 96 10 . . . . 41 45 . 96 . 15 Total Orders 24 | . . . . . . . . . . . . . . . . . . . . 19 . 2 2 . . . . . . 1 . . . . STAY 6 | . . . . . . . . . . . . . . . . . . . . 3 . 1 1 . . . . . . 1 . . . . FOLLOW 3 | . . . . . . . . . . . . . . . . . . . . 1 . 1 1 . . . . . . . . . . . EXPLORE 1 | . . . . . . . . . . . . . . . . . . . . 1 . . . . . . . . . . . . . . RETURN 14 | . . . . . . . . . . . . . . . . . . . . 14 . . . . . . . . . . . . . . Ally Attacks 648 | . . . . . . . . . . . . . . . . . . 72 99 238 67 19 79 . . . . . . . . 6 . 68 Total Damage 18540 | . . . . . . . . . . . . . . . . . . 3436 2413 5675 1902 676 2971 . . . . . . . . 447 . 1020 Kills 111 | . . . . . . . . . . . . . . . . . . 12 16 40 10 5 20 . . . . . . . . 1 . 7 Allies Corrupted 3 | . . . . . . . . . . . . . . . . . . . . . . . . . . . . . . . . 3 . . Allies Melted 1 | . . . . . . . . . . . . . . . . . . . . . . . 1 . . . . . . . . . . . Intel | -11 -10 -10 -9 -8 -7 -7 -7 -7 -7 -7 -6 -6 -6 -6 -6 -5 -5 -5 -5 -5 -5 -5 -5 -4 -4 -4 -4 -3 -3 -3 -2 -2 -2 -1 ------- Run | Yrd Mat Min Mat Mat Fac Was Fac Low Low Dat Pro Fac Low Low Zio Pro Fac Was Fac Ext Cet Arc Hub Fac Upp Upp War Pro Res Tes Res Qua Sec Acc Robot Analysis Total 20 | . 2 . 4 . . . 1 . . . . 1 . . . . 1 . . . . . . 4 . . . . 4 1 . . 2 . Derelict Logs Recovered 7 | . . 1 . . . . . 1 1 . . . . . . 1 . . . . . . . . 2 1 . . . . . . . . Drone Launches 16 | . . . . . . . . . . . . . . . . . . . . 16 . . . . . . . . . . . . . . Drone Recoveries 14 | . . . . . . . . . . . . . . . . . . . . 14 . . . . . . . . . . . . . . Exploration | -11 -10 -10 -9 -8 -7 -7 -7 -7 -7 -7 -6 -6 -6 -6 -6 -5 -5 -5 -5 -5 -5 -5 -5 -4 -4 -4 -4 -3 -3 -3 -2 -2 -2 -1 ------------- Run | Yrd Mat Min Mat Mat Fac Was Fac Low Low Dat Pro Fac Low Low Zio Pro Fac Was Fac Ext Cet Arc Hub Fac Upp Upp War Pro Res Tes Res Qua Sec Acc Turns Passed 30512 | 82 2789 1852 5490 3933 840 104 987 98 228 22 272 720 187 41 351 302 826 248 324 1835 411 1145 293 1685 76 64 261 187 847 628 359 834 1755 436 Spaces Moved 35356 | 45 895 499 1524 1496 1676 355 1499 356 787 82 573 1346 525 163 1262 747 1647 458 1038 1234 277 480 577 4072 300 233 811 524 2146 1251 1018 1425 3399 636 Core 14 | 5 . . . . . . . . . . . . . . . . . . . . . . . . . . . . . . . 9 . . Treads 4088 | 40 895 499 1524 1123 7 . . . . . . . . . . . . . . . . . . . . . . . . . . . . . Legs 2607 | . . . . . . . . . . . . . . . . . . . . 1153 277 176 . . . . . . . . . . 365 636 Wheels 373 | . . . . 373 . . . . . . . . . . . . . . . . . . . . . . . . . . . . . . Hover . | . . . . . . . . . . . . . . . . . . . . . . . . . . . . . . . . . . . Flight 28274 | . . . . . 1669 355 1499 356 787 82 573 1346 525 163 1262 747 1647 458 1038 81 . 304 577 4072 300 233 811 524 2146 1251 1018 1416 3034 . Fastest Speed 5 | 50 160 320 320 145 26 27 26 26 26 26 26 25 25 25 25 25 25 25 23 23 120 23 23 5 24 24 23 23 20 6 6 6 6 30 Average Speed 60 | 147 280 348 320 217 27 27 26 26 26 26 26 25 25 25 25 25 25 27 24 118 120 58 23 23 24 24 23 23 20 20 19 20 21 30 Slowest Speed 570 | 160 320 480 480 570 250 27 27 26 26 26 26 26 25 25 25 92 92 92 25 330 120 120 23 24 24 24 24 23 20 86 20 150 86 30 Overloaded Moves 273 | . . . . . . . . . . . . . . . . . . . . . . . . 28 . . . . . 5 15 26 199 . Propulsion Burnouts . | . . . . . . . . . . . . . . . . . . . . . . . . . . . . . . . . . . . Robots Hopped 86 | . . . . . 3 . 9 . . . . 6 . . . 1 9 . 3 . . . 3 9 1 . 1 . 8 12 3 6 12 . Cave-ins Triggered . | . . . . . . . . . . . . . . . . . . . . . . . . . . . . . . . . . . . Teleports 2 | . . . . . . . . . . . . . . . . . . . . . . . . . . . . . . . . 2 . . Exploration Rate (%) 64 | 3 96 97 98 95 29 95 37 56 78 69 66 40 59 39 85 59 29 96 18 97 87 97 46 52 50 56 95 73 49 76 31 91 90 14 Regions Visited 34 Branch Regions 20 Pre-discovered Areas 3 | . . . . . . . . . . 1 . . . . . 1 . . . . . . . . 1 . . . . . . . . . Known Exits Taken 22 | . . . . 1 . . 1 1 1 1 1 1 1 1 1 1 . . . . . 1 1 1 1 1 1 1 1 1 1 . 1 . Unknown Exits Taken 8 | 1 1 1 1 . . . . . . . . . . . . . . . 1 1 1 . . . . . . . . . . 1 . . Scrap Searched 15 | . . 1 . . . . . 1 1 . 3 . 2 . 4 . . . . . . . . . . 1 . 2 . . . . . . Spaces Dug 356 | . . . 3 6 5 . 24 . 2 . 4 23 4 . . 6 31 . 5 . . . 3 55 . 3 1 3 20 67 20 18 33 20 Terrain Destroyed 551 | . . . 19 23 5 . 24 . 2 . 4 23 4 . . 66 35 . 5 28 2 1 3 55 . 3 1 3 20 68 20 18 36 83 Melee 234 | . . . 3 . 5 . 24 . 2 . 4 21 3 . . 6 17 . 5 . . . 3 50 . 3 1 3 20 13 20 7 24 . Projectile 127 | . . . . . . . . . . . . 2 1 . . 2 14 . . . 2 1 . 5 . . . . . 12 . 11 12 65 AOE 190 | . . . 16 23 . . . . . . . . . . . 58 4 . . 28 . . . . . . . . . 43 . . . 18 Terrain Rammed . | . . . . . . . . . . . . . . . . . . . . . . . . . . . . . . . . . . . Walls Destroyed . | . . . . . . . . . . . . . . . . . . . . . . . . . . . . . . . . . . . Machines Disabled . | . . . . . . . . . . . . . . . . . . . . . . . . . . . . . . . . . . . Actions | -11 -10 -10 -9 -8 -7 -7 -7 -7 -7 -7 -6 -6 -6 -6 -6 -5 -5 -5 -5 -5 -5 -5 -5 -4 -4 -4 -4 -3 -3 -3 -2 -2 -2 -1 --------- Run | Yrd Mat Min Mat Mat Fac Was Fac Low Low Dat Pro Fac Low Low Zio Pro Fac Was Fac Ext Cet Arc Hub Fac Upp Upp War Pro Res Tes Res Qua Sec Acc Total 42831 | 55 1029 549 1938 1911 2036 363 1969 360 801 81 685 1657 571 162 1297 823 1983 578 1099 1593 344 1330 722 4689 302 235 879 585 2499 1557 1123 1911 4291 824 Wait 5466 | . 18 5 192 186 288 . 374 1 7 . 103 253 38 . 9 18 243 105 37 238 46 796 114 419 4 . 38 59 258 258 67 414 744 134 Move 35158 | 44 894 498 1523 1495 1670 354 1481 355 786 81 572 1333 524 162 1261 744 1632 457 1031 1233 276 479 570 4054 297 232 808 523 2131 1226 1011 1412 3374 635 Hop 79 | . . . . . 3 . 8 . . . . 6 . . . 1 6 . 3 . . . 3 8 1 . 1 . 6 12 3 6 12 . Pick Up 177 | 3 25 5 25 26 6 2 5 . . . . 6 . . 1 . 6 1 2 5 . 1 2 13 . . 2 . 14 2 6 9 10 . Fast Attach 200 | 7 2 1 16 12 4 2 19 2 . . . 2 . . 8 8 1 1 7 11 5 4 3 16 . . 11 . 10 . 2 12 27 7 Attach 95 | . 3 . 10 8 9 . 2 . . . . 5 . . . 4 6 1 1 3 . 7 . 3 . . 1 . 4 3 3 6 15 1 Detach 83 | . 2 . 6 2 5 . 1 . . . . 3 . . 1 4 1 2 2 6 . 4 . 7 . . 1 . 6 1 1 5 18 5 Swap 180 | . 4 2 19 11 8 . . . 5 . 6 11 4 . . 2 22 2 . 8 1 6 8 25 . . 1 . 6 14 3 2 7 3 Drop 279 | . 5 7 37 32 23 5 19 2 . . . 6 . . 9 8 5 5 7 12 5 9 6 20 . . 12 . 19 1 3 14 8 . Fire 491 | 1 68 24 100 128 . . . . . . . 3 1 . . 22 22 . . 10 11 4 . 5 . . . . . 15 . 11 29 37 Melee 478 | . . . 3 . 17 . 60 . 3 . 4 29 4 . 8 12 39 4 7 2 . 20 13 85 . 3 4 3 45 25 24 20 44 . Ram 1 | . . . . 1 . . . . . . . . . . . . . . . . . . . . . . . . . . . . . . Kick 5 | . . . . . . . . . . . . . . . . . . . . . . . . . . . . . . . . . 3 2 Crush 32 | . 8 7 7 10 . . . . . . . . . . . . . . . . . . . . . . . . . . . . . . Escape Stasis 18 | . . . . . . . . . . . . . . . . . . . . . . . . 18 . . . . . . . . . . Rewire 60 | . . . . . 3 . . . . . . . . . . . . . . 57 . . . . . . . . . . . . . . Trap 16 | . . . . . . . . . . . . . . . . . . . . . . . . 16 . . . . . . . . . . Miscellaneous 13 | . . . . . . . . . . . . . . . . . . . 2 8 . . 3 . . . . . . . . . . . Route ------- -11/Scrapyard -10/Materials (discovered 5 exits: *Mat x3 / [*Min x2]) -10/Mines (discovered 3 exits: *Mat x2 / [*Sub]) -9/Materials (discovered 4 exits: *Mat x3 / *Min) -8/Materials (discovered 3 exits: *Fac x3) -7/Factory (discovered 4 exits: *Fac / Sto / Low x2) -7/Waste -7/Factory (discovered 5 exits: Sto x2 / *Low x2 / Gar) -7/Lower Caves -7/Lower Caves -7/Data Miner -6/Proximity Caves -6/Factory (discovered 2 exits: *Low x2) -6/Lower Caves -6/Lower Caves (discovered 2 exits: *Fac / *Zio) -6/Zion -5/Proximity Caves -5/Factory (discovered 3 exits: *Fac / [*Upp] / *Ext) -5/Waste -5/Factory (discovered 2 exits: [*Upp] / *Ext) -5/Extension (discovered 2 exits: *Fac / *Cet) -5/Cetus (discovered 2 exits: *Fac / *Arc) -5/Archives (discovered 3 exits: *Fac / *Hub x2) -5/Hub_04(d) (discovered 2 exits: *Fac x2) -4/Factory (discovered 5 exits: *Res x2 / *Upp x2 / Arm) -4/Upper Caves -4/Upper Caves -4/Warlord -3/Proximity Caves -3/Research (discovered 2 exits: *Tes x2) -3/Testing -2/Research (discovered 2 exits: *Acc / *Qua) -2/Quarantine (discovered 2 exits: *Acc / *Sec) -2/Section 7 -1/Access Tau Ceti IV Orbit History --------- Turn | Location | Event 3 | -11/Scrapyard | Discovered new exit (range 15) 83 | -11/Scrapyard | Entered Materials 262 | -10/Materials | Discovered new exit (range 11) 288 | -10/Materials | Discovered new exit (range 11) 307 | -10/Materials | Build established: Mutant 1042 | -10/Materials | Discovered new exit (range 13) 1649 | -10/Materials | Discovered new exit (range 13) 2662 | -10/Materials | Discovered new exit (range 16) 2872 | -10/Materials | Entered Mines 3052 | -10/Mines | Found a hidden stash of uninstalled traps 3701 | -10/Mines | Discovered new exit (range 13) 3759 | -10/Mines | Core integrity fell below 50% 3842 | -10/Mines | Discovered new exit (range 10) 4018 | -10/Mines | Learned Materials terminal intel 4530 | -10/Mines | Discovered new exit (range 10) 4724 | -10/Mines | Entered Materials 4724 | -9/Materials | Evolved 2 slots: Utility x2 4725 | -9/Materials | Loaded intel: 12 terminal locations 4890 | -9/Materials | Repaired Lgt. Treads 5044 | -9/Materials | Build established: Scavenger-Mutant 5334 | -9/Materials | Lost 3 parts (1n2u) 5474 | -9/Materials | Repaired Katana 5515 | -9/Materials | Build established: Mutant 5911 | -9/Materials | Discovered new exit (range 8) 6143 | -9/Materials | Build established: Scavenger-Mutant 6992 | -9/Materials | Discovered new exit (range 13) 7005 | -9/Materials | Identified exit to Mines 8697 | -9/Materials | Core integrity fell below 50% 9111 | -9/Materials | Discovered new exit (range 6) 9307 | -9/Materials | Build established: Mutant 9673 | -9/Materials | Central database locked down 10214 | -9/Materials | Entered another Materials area 10214 | -8/Materials | Evolved 2 slots: Propulsion x1, Utility x1 10372 | -8/Materials | Repaired Lgt. Nuclear Core 10676 | -8/Materials | Discovered new exit (range 16) 10779 | -8/Materials | Build established: Scavenger-Mutant 11631 | -8/Materials | Garrison activated, responded to threat 12054 | -8/Materials | Repaired Imp. Assault Rifle 12287 | -8/Materials | Build established: Mutant 12293 | -8/Materials | Lost 4 parts (1p2u1w) 12397 | -8/Materials | Discovered new exit (range 13) 13741 | -8/Materials | Discovered new exit (range 11) 14102 | -8/Materials | Identified exit to Factory 14147 | -8/Materials | Entered Factory 14147 | -7/Factory | Evolved 2 slots: Propulsion x2 14345 | -7/Factory | Fabricated Imp. Flight Unit (x1) 14422 | -7/Factory | Identified exit to Storage 14422 | -7/Factory | Identified exit to Lower Caves 14466 | -7/Factory | Build established: Hacker-Sprinter 14511 | -7/Factory | Discovered new exit (range 16) 14788 | -7/Factory | Fabricated Imp. Flight Unit? 14834 | -7/Factory | Fabricated Imp. Flight Unit? 14987 | -7/Factory | Manually triggered Chute Trap 14987 | -7/Factory | Sucked down chute 14987 | -7/Factory | Entered Waste 14987 | -7/Waste | The area was eerily silent 15023 | -7/Waste | Discovered new exit (range 12) 15090 | -7/Waste | Identified exit to Factory 15091 | -7/Waste | Entered Factory 15657 | -7/Factory | Identified exit to Garrison 16078 | -7/Factory | Entered Lower Caves 16083 | -7/Lower Caves | Learned Factory terminal intel 16175 | -7/Lower Caves | Discovered new exit (range 3) 16176 | -7/Lower Caves | Identified exit to Lower Caves 16176 | -7/Lower Caves | Entered another Lower Caves area 16326 | -7/Lower Caves | Encountered a Warlord checkpoint 16386 | -7/Lower Caves | Learned location of 1 exit from Proximity Caves 16386 | -7/Lower Caves | Discovered new exit (range 3) 16386 | -7/Lower Caves | Identified exit to Data Miner 16397 | -7/Lower Caves | Attacked by a delusional Derelict stockpiling parts 16404 | -7/Lower Caves | Entered Data Miner 16404 | -7/Data Miner | Discovered new exit (range 6) 16409 | -7/Data Miner | Met Data Miner 16415 | -7/Data Miner | Learned location of Section 7 (-2) 16415 | -7/Data Miner | Acquired the access code to Warlord's prototype stash 16419 | -7/Data Miner | Received God Mode back door access code from Data Miner 16425 | -7/Data Miner | Identified exit to Proximity Caves 16426 | -7/Data Miner | Entered Proximity Caves 16427 | -6/Proximity Caves | Identified exit to Factory 16509 | -6/Proximity Caves | Spotted B-75 Beast 16698 | -6/Proximity Caves | Entered Factory 16698 | -6/Factory | Evolved 2 slots: Utility x2 16699 | -6/Factory | Loaded intel: 26 terminal locations 16764 | -6/Factory | Identified exit to Lower Caves 17406 | -6/Factory | Fabricated Cld. VTOL Module (x1) 17418 | -6/Factory | Entered Lower Caves 17548 | -6/Lower Caves | Discovered new exit (range 13) 17551 | -6/Lower Caves | Identified exit to Lower Caves 17605 | -6/Lower Caves | Entered another Lower Caves area 17609 | -6/Lower Caves | Discovered new exit (range 12) 17612 | -6/Lower Caves | Identified exit to Factory 17644 | -6/Lower Caves | Discovered new exit (range 9) 17646 | -6/Lower Caves | Identified exit to Zion 17646 | -6/Lower Caves | Entered Zion 17692 | -6/Zion | Found Prototype Launcher 17692 | -6/Zion | Identified Gui. Missile Launcher 17791 | -6/Zion | Given A8's code to call for help 17810 | -6/Zion | Met Imprinter 17832 | -6/Zion | Received a hallucinogenic algorithm 17993 | -6/Zion | Discovered new exit (range 15) 17997 | -6/Zion | Identified exit to Proximity Caves 17997 | -6/Zion | Entered Proximity Caves 18005 | -5/Proximity Caves | Spotter reported a threat 18281 | -5/Proximity Caves | Discovered exit to Factory (range 3) 18299 | -5/Proximity Caves | Entered Factory 18299 | -5/Factory | Evolved 2 slots: Utility x2 18343 | -5/Factory | Discovered new exit (range 12) 18397 | -5/Factory | Garrison activated, responded to threat 18599 | -5/Factory | Search patrols dispatched 18686 | -5/Factory | Fabricated Combat Drone Bay? 18899 | -5/Factory | Search patrols dispatched 18962 | -5/Factory | Central database locked down 19031 | -5/Factory | Discovered new exit (range 10) 19099 | -5/Factory | Discovered new exit (range 7) 19125 | -5/Factory | Manually triggered Chute Trap 19125 | -5/Factory | Sucked down chute 19125 | -5/Factory | Entered Waste 19147 | -5/Waste | Spotted C-40 Crusher 19149 | -5/Waste | Spotted C-40 Crusher 19149 | -5/Waste | Spotted C-40 Crusher 19149 | -5/Waste | Spotted C-40 Crusher 19182 | -5/Waste | Spotted C-40 Crusher 19185 | -5/Waste | Spotted C-40 Crusher 19192 | -5/Waste | Discovered new exit (range 12) 19196 | -5/Waste | Warlord forces began an assault 19244 | -5/Waste | Allies destroyed C-40 Crusher 19248 | -5/Waste | Allies destroyed C-40 Crusher 19279 | -5/Waste | Lost 6 allies 19373 | -5/Waste | Entered Factory 19373 | -5/Factory | Accompanied by 10 allies 19447 | -5/Factory | Fabricated Cld. VTOL Module? 19464 | -5/Factory | Discovered new exit (range 3) 19530 | -5/Factory | Discovered new exit (range 15) 19579 | -5/Factory | Repaired Imp. Propulsion Shielding 19621 | -5/Factory | Fabricated Cld. VTOL Module (x1) 19673 | -5/Factory | First assault squad dispatched 19697 | -5/Factory | Entered Extension 20018 | -5/Extension | Build established: Hacker-Mutant 20060 | -5/Extension | Rescued a captive Derelict 20061 | -5/Extension | Rescued a captive Derelict 20102 | -5/Extension | Rescued a captive Derelict 20102 | -5/Extension | Rescued a captive Derelict 20144 | -5/Extension | Rescued A7 20155 | -5/Extension | Lost 3 allies 20402 | -5/Extension | Rescued a captive Derelict 20403 | -5/Extension | Rescued a captive Derelict 20416 | -5/Extension | Rescued a captive Derelict 20429 | -5/Extension | Rescued a captive Derelict 20430 | -5/Extension | Rescued a captive Derelict 20581 | -5/Extension | Spotted B-75 Beast 20592 | -5/Extension | Allies destroyed B-75 Beast 20622 | -5/Extension | Spotted B-75 Beast 20624 | -5/Extension | Allies destroyed B-75 Beast 20881 | -5/Extension | Lost 7 allies 20933 | -5/Extension | Found Unknown Protection 20933 | -5/Extension | Identified Hvy. Reflective Plating 20997 | -5/Extension | Repaired Mni. Fusion Reactor 21036 | -5/Extension | Repaired Imp. Propulsion Shielding 21276 | -5/Extension | Rescued a captive Derelict 21286 | -5/Extension | Rescued a captive Derelict 21486 | -5/Extension | Discovered new exit (range 16) 21487 | -5/Extension | Discovered new exit (range 15) 21497 | -5/Extension | First assault squad dispatched 21532 | -5/Extension | Entered Cetus 21532 | -5/Cetus | Accompanied by 12 allies (A7) 21537 | -5/Cetus | Acquired a Cetus Manufacturing Module code from A7 21549 | -5/Cetus | Spotted Cetus Guard 21549 | -5/Cetus | Spotted Cetus Guard 21551 | -5/Cetus | Spotted Cetus Guard 21551 | -5/Cetus | Spotted Cetus Guard 21568 | -5/Cetus | Allies destroyed Cetus Guard 21571 | -5/Cetus | Allies destroyed Cetus Guard 21572 | -5/Cetus | Destroyed Cetus Guard 21573 | -5/Cetus | Allies destroyed Cetus Guard 21601 | -5/Cetus | Lost 7 allies 21649 | -5/Cetus | Started Cetus Manufacturing Module 21666 | -5/Cetus | Escorted A7 to Cetus Mainframe 21674 | -5/Cetus | Manufactured an Enhanced Grunt 21699 | -5/Cetus | Manufactured an Enhanced Grunt 21724 | -5/Cetus | Manufactured an Enhanced Grunt 21749 | -5/Cetus | Manufactured an Enhanced Grunt 21774 | -5/Cetus | Manufactured an Enhanced Grunt 21783 | -5/Cetus | Discovered new exit (range 15) 21826 | -5/Cetus | Spotted Cetus Guard 21826 | -5/Cetus | Spotted Cetus Guard 21829 | -5/Cetus | Spotted Cetus Guard 21829 | -5/Cetus | Spotted Cetus Guard 21848 | -5/Cetus | Allies destroyed Cetus Guard 21849 | -5/Cetus | Allies destroyed A7 21849 | -5/Cetus | Allies destroyed Cetus Guard 21851 | -5/Cetus | Allies destroyed Cetus Guard 21854 | -5/Cetus | Allies destroyed Cetus Guard 21862 | -5/Cetus | Extracted ID and sensor layout for unrecognized location from A7's data core 21862 | -5/Cetus | Discovered new exit (range 15) 21886 | -5/Cetus | Met Revision 17 21943 | -5/Cetus | Entered Archives 21943 | -5/Archives | Accompanied by 8 allies 21984 | -5/Archives | Unable to access archive contents 21989 | -5/Archives | Discovered new exit (range 15) 22005 | -5/Archives | Discovered new exit (range 15) 22061 | -5/Archives | Discovered new exit (range 14) 22506 | -5/Archives | Build established: Hacker-Sprinter 23038 | -5/Archives | Identified exit to Hub_04(d) 23055 | -5/Archives | Identified exit to Factory 23088 | -5/Archives | Entered Hub_04(d) 23088 | -5/Hub_04(d) | Accompanied by 6 allies 23186 | -5/Hub_04(d) | Discovered exit to Factory (range 13) 23242 | -5/Hub_04(d) | Discovered exit to Factory (range 5) 23307 | -5/Hub_04(d) | Garrison activated, responded to threat 23361 | -5/Hub_04(d) | Network Hub disabled 23372 | -5/Hub_04(d) | Spotted Lightning 23373 | -5/Hub_04(d) | Spotted Lightning 23380 | -5/Hub_04(d) | Spotted Lightning 23381 | -5/Hub_04(d) | Entered Factory 23381 | -4/Factory | Evolved 2 slots: Utility x2 23629 | -4/Factory | Spotted B-86 Titan 23644 | -4/Factory | Build established: Hacker-Scout 23681 | -4/Factory | Identified exit to Upper Caves 23681 | -4/Factory | Identified exit to Armory 23709 | -4/Factory | Fabricated Cld. Nuclear Pulse Thruster? 23977 | -4/Factory | Repaired Micro-nuke Launcher 23997 | -4/Factory | Repaired Imp. Propulsion Shielding 24025 | -4/Factory | Repaired Lyr. Light Armor Plating 24131 | -4/Factory | Search patrols dispatched 24293 | -4/Factory | Discovered new exit (range 13) 24377 | -4/Factory | Fabricated Exp. Hacking Suite? 24469 | -4/Factory | Fabricated Cld. Nuclear Pulse Thruster? 24493 | -4/Factory | Discovered new exit (range 6) 24494 | -4/Factory | Identified exit to Research 24498 | -4/Factory | Central database locked down 24559 | -4/Factory | Fabricated Cld. Nuclear Pulse Thruster? 24706 | -4/Factory | Repaired Lrn. Sensor Array? 24875 | -4/Factory | Repaired Broken Mni. Fusion Reactor 24910 | -4/Factory | Repaired Lrn. Sensor Array 25066 | -4/Factory | Entered Upper Caves 25127 | -4/Upper Caves | Learned Research emergency access door positions 25142 | -4/Upper Caves | Discovered new exit (range 3) 25142 | -4/Upper Caves | Identified exit to Upper Caves 25142 | -4/Upper Caves | Entered another Upper Caves area 25179 | -4/Upper Caves | Encountered a Warlord checkpoint 25204 | -4/Upper Caves | Discovered new exit (range 6) 25205 | -4/Upper Caves | Identified exit to Warlord 25206 | -4/Upper Caves | Entered Warlord 25221 | -4/Warlord | Discovered new exit (range 9) 25223 | -4/Warlord | Identified exit to Proximity Caves 25232 | -4/Warlord | Opened side exit 25247 | -4/Warlord | System corruption cleaned by Quarantine Array 25257 | -4/Warlord | Found Prototype Device 25257 | -4/Warlord | Identified Minesniffer Drone Bay 25300 | -4/Warlord | Visited the Vortex Lab 25302 | -4/Warlord | Found Prototype Energy Cannon 25302 | -4/Warlord | Identified Vortex Driver 25304 | -4/Warlord | Found Prototype Energy Gun 25304 | -4/Warlord | Identified Vortex Rail 25322 | -4/Warlord | Warlord's base attacked by MAIN.C 25337 | -4/Warlord | Met Warlord 25343 | -4/Warlord | Opened Warlord's prototype stash 25356 | -4/Warlord | Found Prototype Device 25356 | -4/Warlord | Identified Exp. Focal Shield 25361 | -4/Warlord | Found Prototype Processor 25361 | -4/Warlord | Identified Exp. Targeting Computer 25467 | -4/Warlord | Entered Proximity Caves 25535 | -3/Proximity Caves | Spotted B-86 Titan 25650 | -3/Proximity Caves | Discovered exit to Research (range 15) 25652 | -3/Proximity Caves | Attracted the attention of an 0b10 outpost 25654 | -3/Proximity Caves | Entered Research 25654 | -3/Research | Evolved 2 slots: Propulsion x1, Utility x1 25691 | -3/Research | Identified exit to DSF 25723 | -3/Research | Identified exit to Testing 25764 | -3/Research | Fabricated Exp. Hacking Suite (x1) 25854 | -3/Research | Revision forces began assault on 0b10 25859 | -3/Research | Repaired Broken Imp. Plasma Cutter 25887 | -3/Research | Fabricated Electron Diverter (x1) 26027 | -3/Research | Met up with Revision 17++ 26103 | -3/Research | Repaired Centrium Medium Armor Plating 26150 | -3/Research | Fabricated Cld. Impulse Thruster (x1) 26230 | -3/Research | Found Fusion Bomb Launcher 26354 | -3/Research | Research terminal network offline 26501 | -3/Research | Entered Testing 26617 | -3/Testing | Spotted Striker 26665 | -3/Testing | Spotted Alpha 7 26666 | -3/Testing | Spotted Striker 26745 | -3/Testing | Spotted PX-20JQDDBQVN 26773 | -3/Testing | Fabricated Exp. Signal Interpreter (x1) 27126 | -3/Testing | Discovered new exit (range 14) 27129 | -3/Testing | Identified exit to Research 27129 | -3/Testing | Entered Research 27129 | -2/Research | Warlord forces began assault on 0b10 27129 | -2/Research | Evolved 2 slots: Power x1, Utility x1 27130 | -2/Research | Identified exit to Quarantine 27170 | -2/Research | Spotted B-90 Cyclops 27201 | -2/Research | Fabricated Lrn. Sensor Array? 27239 | -2/Research | Research machine network offline 27317 | -2/Research | Discovered new exit (range 3) 27327 | -2/Research | Identified exit to Access 27348 | -2/Research | Met up with Warlord 27358 | -2/Research | Fabricated Exp. Propulsion Shielding? 27488 | -2/Research | Entered Quarantine 27594 | -2/Quarantine | Cryocooling Duct disabled 27600 | -2/Quarantine | Cryocooling Duct disabled 27609 | -2/Quarantine | Ambient heat levels rising (+20) 27609 | -2/Quarantine | Non-combat units ordered to evacuate 27615 | -2/Quarantine | Ambient heat levels rising (+20) 27615 | -2/Quarantine | Combat units ordered to evacuate 27715 | -2/Quarantine | Quarantine Guard activated 27725 | -2/Quarantine | Met incapacitated Sigix Warrior 27725 | -2/Quarantine | Lockdown squad dispatched 27726 | -2/Quarantine | Repaired Centrium Medium Armor Plating? 27726 | -2/Quarantine | Acquired the access code to the Sigix quarantine chamber 27727 | -2/Quarantine | Unlocked Sigix quarantine chamber 27727 | -2/Quarantine | Found Sigix Containment Pod 27733 | -2/Quarantine | Enhanced Grunt warped into view, answering call for help 27737 | -2/Quarantine | Enhanced Grunt warped into view, answering call for help 27764 | -2/Quarantine | Spotted Lightning 27765 | -2/Quarantine | Spotted Lightning 27765 | -2/Quarantine | Spotted Lightning 27825 | -2/Quarantine | Spotted Quarantine Guard 27865 | -2/Quarantine | Spotted Quarantine Guard 27865 | -2/Quarantine | Spotted Quarantine Guard 27915 | -2/Quarantine | Spotted Quarantine Guard 27916 | -2/Quarantine | Lost 3 parts (1p2u) 27957 | -2/Quarantine | Found Alien Artifact 27957 | -2/Quarantine | Identified Core Reset Matrix 27957 | -2/Quarantine | Used Core Reset Matrix 27961 | -2/Quarantine | Sensed 12 artifacts in vicinity 27981 | -2/Quarantine | Found Subatomic Replicator 27998 | -2/Quarantine | Spotted Quarantine Guard 28011 | -2/Quarantine | Found Transdimensional Reconstructor 28013 | -2/Quarantine | Found Hpw. Transdimensional Reconstructor 28014 | -2/Quarantine | Warped through subspace 28014 | -2/Quarantine | Spotted Quarantine Guard 28014 | -2/Quarantine | Spotted Quarantine Guard 28015 | -2/Quarantine | Warped through subspace 28056 | -2/Quarantine | Repaired Exp. Propulsion Shielding? 28080 | -2/Quarantine | Discovered exit to Access (range 13) 28107 | -2/Quarantine | Spotted Quarantine Guard 28218 | -2/Quarantine | Found Sigix Corpse 28294 | -2/Quarantine | Spotted Fortress 28317 | -2/Quarantine | Discovered new exit (range 6) 28317 | -2/Quarantine | Spotted Quarantine Guard 28322 | -2/Quarantine | Entered Section 7 28323 | -2/Section 7 | Sensed 19 artifacts in vicinity 28372 | -2/Section 7 | Spotted B-90 Cyclops 28380 | -2/Section 7 | Incoming investigation squad redirected 28485 | -2/Section 7 | Spotted S7 Guard 28493 | -2/Section 7 | Repaired Centrium Medium Armor Plating? 28497 | -2/Section 7 | Found Integrated Dissipator 28497 | -2/Section 7 | Installed Integrated Dissipator, increased core heat dissipation (+20) 28515 | -2/Section 7 | Found Integrated Thermoelectric Network 28515 | -2/Section 7 | Installed Integrated Thermoelectric Network, gained heat-energy exchange potential 28542 | -2/Section 7 | Found Core Reset Matrix 28545 | -2/Section 7 | Sensed 16 artifacts in vicinity 28566 | -2/Section 7 | Spotted S7 Guard 28895 | -2/Section 7 | Found Integrated Reactor 28895 | -2/Section 7 | Installed Integrated Reactor, increased core energy generation (+10) 29072 | -2/Section 7 | Search patrols dispatched 29198 | -2/Section 7 | Found Core Physics Calibrator 29319 | -2/Section 7 | Spotted Alpha 7 29353 | -2/Section 7 | Spotted S7 Guard 29355 | -2/Section 7 | Spotted Executioner 29355 | -2/Section 7 | Spotted Executioner 29364 | -2/Section 7 | Spotted Executioner 29367 | -2/Section 7 | Spotted Executioner 29376 | -2/Section 7 | Spotted B-99 Colossus 29387 | -2/Section 7 | Lost 3 parts (2u1w) 29387 | -2/Section 7 | Found Core Expander 29395 | -2/Section 7 | Found LRC Storage 29395 | -2/Section 7 | Installed LRC Storage, increased inventory capacity (+2) 29397 | -2/Section 7 | Found LRC Storage 29397 | -2/Section 7 | Installed LRC Storage, increased inventory capacity (+2) 29684 | -2/Section 7 | Build established: Alien-Ninja 29822 | -2/Section 7 | Search patrols dispatched 29867 | -2/Section 7 | Found Transdimensional Reconstructor 29870 | -2/Section 7 | Found Terrabomb 29871 | -2/Section 7 | Found Terrabomb 29880 | -2/Section 7 | Spotted Striker 29880 | -2/Section 7 | Spotted Striker 29902 | -2/Section 7 | Used Terrabomb 29904 | -2/Section 7 | Integrated with Sigix Exoskeleton 29905 | -2/Section 7 | Sigix Warrior commented on Exoskeleton integration 29915 | -2/Section 7 | Used Subatomic Replicator to replicate Core Expander 29916 | -2/Section 7 | Installed Core Expander, added new Propulsion slot 29918 | -2/Section 7 | Installed Core Expander, added new Propulsion slot 29942 | -2/Section 7 | Destroyed Executioner 29947 | -2/Section 7 | Destroyed Executioner 29957 | -2/Section 7 | Found Prototype Processor 29957 | -2/Section 7 | Identified Exp. Core Analyzer 29960 | -2/Section 7 | Found Prototype Processor 29960 | -2/Section 7 | Identified Exp. Targeting Computer 30001 | -2/Section 7 | Found Sigix Sheargun 30002 | -2/Section 7 | Found Sigix Sheargun 30010 | -2/Section 7 | Core integrity fell below 50% 30038 | -2/Section 7 | Sigix Exoskeleton integrity reduced to 80% 30046 | -2/Section 7 | Spotted Alpha 7 30065 | -2/Section 7 | Discovered exit to Access (range 15) 30077 | -2/Section 7 | Entered Access 30077 | -1/Access | Evolved 2 slots: Utility x2 30082 | -1/Access | Emitted hypermatrix ping 30087 | -1/Access | Assembled emerged from beneath the floor 30128 | -1/Access | Lost 5 allies 30205 | -1/Access | Build established: Alien-Sigix 30327 | -1/Access | First assault squad dispatched 30390 | -1/Access | Assembled emerged from beneath the floor 30407 | -1/Access | Assembled emerged from beneath the floor 30412 | -1/Access | Discovered new exit (range 17) 30483 | -1/Access | Lost 8 allies 30513 | *** | Destroyed 0b10! Last Messages --------------- 30505_ Quantum Shear penetrates G-73 Enforcer. 30505_ G-73 Enforcer destroyed. 30507_ C-30 ARC bursts open, deploying its payload. 30507_ G-73 Enforcer unfolds itself. 30507_ B-74 Champion unfolds itself. 30507_ G-73 Enforcer unfolds itself. 30507_ B-74 Champion unfolds itself. 30507_ I-47 Archangel unfolds itself. 30508_ Quantum Shear penetrates I-47 Archangel. 30509_ C-30 ARC bursts open, deploying its payload. 30509_ G-73 Enforcer unfolds itself. 30509_ I-47 Archangel unfolds itself. 30511_ Quantum Shear penetrates Sealed Heavy Doors. [Achievement: 40k Club] [Achievement: 50k Club] [Achievement: Payload Armed] Map ----- +----------------------------------------------------+ | ?????????????????????????????????????????????????? | | ?????????????????????????????????????????????????? | | ?????????????????????????????????????????????????? | | ?????????????????????????????????????????????????? | | ????????????????? ?? ????????????????????????????? | | ???????????? ???????????????????????? | | ?????????## ############### ????????????????????? | | ???????? ############## ?????????????????? | | ??????#### ###################????????????????? | | ?????##### #####################??????????????? | | ????###### ######################?????????????? | | ??? ## ########################????????????? | | ??? # #########################???????????? | | ?? #########################???????????? | | ?# % = # ########################??????????? | | ?# * %RR# #########################?????????? | | ?# %k! #########################?????????? | | # %[u= ##########################????????? | | # #!%[! ##########################????????? | | + #=%[[[##### ####################????????? | | # =%C%%T""" """" #???????? | | # "%%gi " """ """" BB #???????? | | # #= %i g """" BB #???????? | | # ##%%g gg b!= """" ???????? | | # ## % g!b/ "" """" ???????? | | # [ "; = X" """" ??????? | | # ## *%= """" ???????? | | # "; %% """" BB #???????? | | ##+###"""" %= =% """" BB #???????? | | ## ### " !%=%= """" #???????? | | ### ##### " =;!###; #####################???????? | | ### #### "" ######;###################### ??????? | | ### #####""%"############################# ??????? | | ### k############################# ??????? | | # ############################# ??????? | | # ############################# ??????? | | # " ######### ######## ?????? | | # """ ## ######## ??????? | | # """ ## ######## ?????? | | # " ## " ######## ????? | | # # """ ###########????? | | # ! + """###########????? | | # [ # " ############???? | | # ######+####### # k ############???? | | # ##### ### # ############???? | | # #####/ ### # ############???? | | ### ##### ### # ############???? | | ##### ### # ! #############??? | | ##### = ### #######/#################???? | | ########## ## ###### ####### ######???? | +----------------------------------------------------+ Best States ------------- Heat Dissipation 142 Energy Generation 81 Energy Capacity 500 Matter Stores 300 Matter Capacity 300 Sight Range 22 Robot Scan Range 18 Terrain Scan Range 16 Terrain Scan Density 210 ECM Strength 1 Jamming Range 12 Additional Mass Support 16 Armor Coverage 600 Resistance: KI 50 Resistance: TH 50 Resistance: EX 50 Resistance: EM 50 Resistance: I 50 Resistance: S 50 Resistance: P 50 Propulsion Shielding 90 Evasion (%) 79 Targeting Accuracy 12 Target Analysis 8 Core Analysis 8 Recoil Reduction 3 Offensive Hacking 40 Defensive Hacking 14 Item Schematics ----------------- None Robot Schematics ------------------ None Fabricated ------------ Imp. Flight Unit | x1 | -7/Factory Imp. Flight Unit | x1 | -7/Factory Imp. Flight Unit | x1 | -7/Factory Cld. VTOL Module | x1 | -6/Factory Combat Drone Bay | x1 | -5/Factory Cld. VTOL Module | x1 | -5/Factory Cld. VTOL Module | x1 | -5/Factory Cld. Nuclear Pulse Thruster | x1 | -4/Factory Exp. Hacking Suite | x1 | -4/Factory Cld. Nuclear Pulse Thruster | x1 | -4/Factory Cld. Nuclear Pulse Thruster | x1 | -4/Factory Exp. Hacking Suite | x1 | -3/Research Electron Diverter | x1 | -3/Research Cld. Impulse Thruster | x1 | -3/Research Exp. Signal Interpreter | x1 | -3/Testing Lrn. Sensor Array | x2 | -2/Research Exp. Propulsion Shielding | x1 | -2/Research Alien Tech Used ----------------- Core Reset Matrix Transdimensional Reconstructor High-powered Transdimensional Reconstructor Integrated Dissipator Integrated Thermoelectric Network Integrated Reactor Core Physics Calibrator LRC Storage Terrabomb Sigix Exoskeleton Sigix Sheargun Subatomic Replicator Core Expander Achievements -------------- 40k Club 50k Club More Power To You Payload Armed Revolutionary Research Treasure Hunter Challenges ------------ None Game ------ Seed AutogunJunkGuard Manual? 0 Play Time 08:54:58 Cumulative 164.9 hours Start 2024.11.15 @ 22:29:32 End 2024.11.16 @ 15:57:55 Sessions 5 Manual Loads 0 Difficulty Rogue Special Mode None Game No. 81 Rogue 18 Adventurer 63 Explorer 0 Win Type 3 Total 8 Types 7/0/0/1/0/0/0/0/0 Lore% 69 Gallery% 68 Achievement% 57 Wizard Run 0 Options --------- Layout 1 ASCII 0 Keyboard 1 Movement Numpad Keybinds 0 Fullscreen 2 Font 24/Terminus Map View 50x35 Zoom Use 0% Tactical HUD 1 Map Filters NONE Filters NONE Steam 1 RUN: b2a29315-88bc-4c0a-ae53-632be7c70946